Workbook

Sheet INIZIO
B1: INFORMAZIONI SU QUESTO MODELLO
B2: Utilizzare la cartella di lavoro Budget spese aziendali per tenere traccia delle spese pianificate e effettive e delle variazioni.
B3: Inserire il nome della società e aggiungere il logo.
B4: Immettere i dettagli nelle tabelle del foglio di lavoro Spese pianificate e nel foglio di lavoro Spese effettive.
B5: Le tabelle vengono aggiornate automaticamente nel foglio di lavoro Variazioni di spesa e i grafici nel foglio di lavoro Analisi delle spese.
B7: Per altre informazioni sulle tabelle, premere MAIUSC, quindi F10 in una tabella, selezionare l'opzione TABELLA, quindi selezionare TESTO ALTERNATIVO

Sheet SPESE PIANIFICATE
B4: SPESE PIANIFICATE | C4: GEN | D4: FEB | E4: MAR | F4: APR | G4: MAG | H4: GIU | I4: LUG | J4: AGO | K4: SET | L4: OTT | M4: NOV | N4: DIC | O4: ANNO
B5: COSTI DEI DIPENDENTI | C5: Gen | D5: Feb | E5: Mar | F5: Apr | G5: Mag | H5: Giu | I5: Lug | J5: Ago | K5: Set | L5: Ott | M5: Nov | N5: Dic | O5: ANNO
B6: Stipendi | C6: € 85,000.00 | D6: € 85,000.00 | E6: € 85,000.00 | F6: € 87,500.00 | G6: € 87,500.00 | H6: € 87,500.00 | I6: € 87,500.00 | J6: € 92,400.00 | K6: € 92,400.00 | L6: € 92,400.00 | M6: € 92,400.00 | N6: € 92,400.00 | O6: =SUM(C6:N6) -> € 1,067,000.00
B7: Indennità | C7: =C6*0.27 -> € 22,950.00 | D7: € 22,950.00 | E7: € 22,950.00 | F7: € 23,625.00 | G7: € 23,625.00 | H7: € 23,625.00 | I7: € 23,625.00 | J7: € 24,948.00 | K7: € 24,948.00 | L7: € 24,948.00 | M7: € 24,948.00 | N7: € 24,948.00 | O7: =SUM(C7:N7) -> € 288,090.00
B8: Subtotale | C8: =SUBTOTAL(109,EmployeePlan[Gen]) -> € 107,950.00 | D8: =SUBTOTAL(109,EmployeePlan[Feb]) -> € 107,950.00 | E8: =SUBTOTAL(109,EmployeePlan[Mar]) -> € 107,950.00 | F8: =SUBTOTAL(109,EmployeePlan[Apr]) -> € 111,125.00 | G8: =SUBTOTAL(109,EmployeePlan[Mag]) -> € 111,125.00 | H8: =SUBTOTAL(109,EmployeePlan[Giu]) -> € 111,125.00 | I8: =SUBTOTAL(109,EmployeePlan[Lug]) -> € 111,125.00 | J8: =SUBTOTAL(109,EmployeePlan[Ago]) -> € 117,348.00 | K8: =SUBTOTAL(109,EmployeePlan[Set]) -> € 117,348.00 | L8: =SUBTOTAL(109,EmployeePlan[Ott]) -> € 117,348.00 | M8: =SUBTOTAL(109,EmployeePlan[Nov]) -> € 117,348.00 | N8: =SUBTOTAL(109,EmployeePlan[Dic]) -> € 117,348.00 | O8: =SUBTOTAL(109,EmployeePlan[ANNO]) -> € 1,355,090.00
B10: COSTI DI UFFICIO | C10: Gen | D10: Feb | E10: Mar | F10: Apr | G10: Mag | H10: Giu | I10: Lug | J10: Ago | K10: Set | L10: Ott | M10: Nov | N10: Dic | O10: ANNO
B11: Locazione di uffici | C11: € 9,800.00 | D11: € 9,800.00 | E11: € 9,800.00 | F11: € 9,800.00 | G11: € 9,800.00 | H11: € 9,800.00 | I11: € 9,800.00 | J11: € 9,800.00 | K11: € 9,800.00 | L11: € 9,800.00 | M11: € 9,800.00 | N11: € 9,800.00 | O11: =SUM(C11:N11) -> € 117,600.00
B12: Gas | D12: € 400.00 | E12: € 400.00 | F12: € 100.00 | G12: € 100.00 | H12: € 100.00 | I12: € 100.00 | J12: € 100.00 | K12: € 100.00 | L12: € 100.00 | M12: € 400.00 | N12: € 400.00 | O12: € 2,300.00
B13: Elettricità | C13: € 300.00 | D13: € 300.00 | E13: € 300.00 | F13: € 300.00 | G13: € 300.00 | H13: € 300.00 | I13: € 300.00 | J13: € 300.00 | K13: € 300.00 | L13: € 300.00 | M13: € 300.00 | N13: € 300.00 | O13: € 3,600.00
B14: Acqua | C14: € 40.00 | D14: € 40.00 | E14: € 40.00 | F14: € 40.00 | G14: € 40.00 | H14: € 40.00 | I14: € 40.00 | J14: € 40.00 | K14: € 40.00 | L14: € 40.00 | M14: € 40.00 | N14: € 40.00 | O14: € 480.00
B15: Telefono | C15: € 250.00 | D15: € 250.00 | E15: € 250.00 | F15: € 250.00 | G15: € 250.00 | H15: € 250.00 | I15: € 250.00 | J15: € 250.00 | K15: € 250.00 | L15: € 250.00 | M15: € 250.00 | N15: € 250.00 | O15: € 3,000.00
B16: Accesso a Internet | C16: € 180.00 | D16: € 180.00 | E16: € 180.00 | F16: € 180.00 | G16: € 180.00 | H16: € 180.00 | I16: € 180.00 | J16: € 180.00 | K16: € 180.00 | L16: € 180.00 | M16: € 180.00 | N16: € 180.00 | O16: € 2,160.00
B17: Forniture ufficio | C17: € 200.00 | D17: € 200.00 | E17: € 200.00 | F17: € 200.00 | G17: € 200.00 | H17: € 200.00 | I17: € 200.00 | J17: € 200.00 | K17: € 200.00 | L17: € 200.00 | M17: € 200.00 | N17: € 200.00 | O17: € 2,400.00
B18: Sicurezza | C18: € 600.00 | D18: € 600.00 | E18: € 600.00 | F18: € 600.00 | G18: € 600.00 | H18: € 600.00 | I18: € 600.00 | J18: € 600.00 | K18: € 600.00 | L18: € 600.00 | M18: € 600.00 | N18: € 600.00 | O18: € 7,200.00
B19: Subtotale | C19: =SUBTOTAL(109,OfficePlan[Gen]) -> € 11,370.00 | D19: =SUBTOTAL(109,OfficePlan[Feb]) -> € 11,770.00 | E19: =SUBTOTAL(109,OfficePlan[Mar]) -> € 11,770.00 | F19: =SUBTOTAL(109,OfficePlan[Apr]) -> € 11,470.00 | G19: =SUBTOTAL(109,OfficePlan[Mag]) -> € 11,470.00 | H19: =SUBTOTAL(109,OfficePlan[Giu]) -> € 11,470.00 | I19: =SUBTOTAL(109,OfficePlan[Lug]) -> € 11,470.00 | J19: =SUBTOTAL(109,OfficePlan[Ago]) -> € 11,470.00 | K19: =SUBTOTAL(109,OfficePlan[Set]) -> € 11,470.00 | L19: =SUBTOTAL(109,OfficePlan[Ott]) -> € 11,470.00 | M19: =SUBTOTAL(109,OfficePlan[Nov]) -> € 11,770.00 | N19: =SUBTOTAL(109,OfficePlan[Dic]) -> € 11,770.00 | O19: =SUBTOTAL(109,OfficePlan[ANNO]) -> € 138,740.00
B21: COSTI DI MARKETING | C21: Gen | D21: Feb | E21: Mar | F21: Apr | G21: Mag | H21: Giu | I21: Lug | J21: Ago | K21: Set | L21: Ott | M21: Nov | N21: Dic | O21: ANNO
B22: Hosting di siti Web | C22: € 500.00 | D22: € 500.00 | E22: € 500.00 | F22: € 500.00 | G22: € 500.00 | H22: € 500.00 | I22: € 500.00 | J22: € 500.00 | K22: € 500.00 | L22: € 500.00 | M22: € 500.00 | N22: € 500.00 | O22: =SUM(C22:N22) -> € 6,000.00
B23: Aggiornamenti del sito Web | C23: € 200.00 | D23: € 200.00 | E23: € 200.00 | F23: € 200.00 | G23: € 200.00 | H23: € 1,000.00 | I23: € 200.00 | J23: € 200.00 | K23: € 200.00 | L23: € 200.00 | M23: € 200.00 | N23: € 1,000.00 | O23: € 4,000.00
B24: Preparazione materiale | C24: € 5,000.00 | D24: € 0.00 | E24: € 0.00 | F24: € 5,000.00 | G24: € 0.00 | H24: € 0.00 | I24: € 5,000.00 | J24: € 0.00 | K24: € 0.00 | L24: € 5,000.00 | M24: € 0.00 | N24: € 0.00 | O24: € 20,000.00
B25: Stampa materiale | C25: € 200.00 | D25: € 200.00 | E25: € 200.00 | F25: € 200.00 | G25: € 200.00 | H25: € 200.00 | I25: € 200.00 | J25: € 200.00 | K25: € 200.00 | L25: € 200.00 | M25: € 200.00 | N25: € 200.00 | O25: € 2,400.00
B26: Eventi di marketing | C26: € 2,000.00 | D26: € 2,000.00 | E26: € 2,000.00 | F26: € 5,000.00 | G26: € 2,000.00 | H26: € 2,000.00 | I26: € 2,000.00 | J26: € 5,000.00 | K26: € 2,000.00 | L26: € 2,000.00 | M26: € 2,000.00 | N26: € 5,000.00 | O26: € 33,000.00
B27: Spese varie | C27: € 200.00 | D27: € 200.00 | E27: € 200.00 | F27: € 200.00 | G27: € 200.00 | H27: € 200.00 | I27: € 200.00 | J27: € 200.00 | K27: € 200.00 | L27: € 200.00 | M27: € 200.00 | N27: € 200.00 | O27: € 2,400.00
B28: Subtotale | C28: =SUBTOTAL(109,MarketingPlan[Gen]) -> € 8,100.00 | D28: =SUBTOTAL(109,MarketingPlan[Feb]) -> € 3,100.00 | E28: =SUBTOTAL(109,MarketingPlan[Mar]) -> € 3,100.00 | F28: =SUBTOTAL(109,MarketingPlan[Apr]) -> € 11,100.00 | G28: =SUBTOTAL(109,MarketingPlan[Mag]) -> € 3,100.00 | H28: =SUBTOTAL(109,MarketingPlan[Giu]) -> € 3,900.00 | I28: =SUBTOTAL(109,MarketingPlan[Lug]) -> € 8,100.00 | J28: =SUBTOTAL(109,MarketingPlan[Ago]) -> € 6,100.00 | K28: =SUBTOTAL(109,MarketingPlan[Set]) -> € 3,100.00 | L28: =SUBTOTAL(109,MarketingPlan[Ott]) -> € 8,100.00 | M28: =SUBTOTAL(109,MarketingPlan[Nov]) -> € 3,100.00 | N28: =SUBTOTAL(109,MarketingPlan[Dic]) -> € 6,900.00 | O28: =SUBTOTAL(109,MarketingPlan[ANNO]) -> € 67,800.00
B30: FORMAZIONE/VIAGGIO | C30: Gen | D30: Feb | E30: Mar | F30: Apr | G30: Mag | H30: Giu | I30: Lug | J30: Ago | K30: Set | L30: Ott | M30: Nov | N30: Dic | O30: ANNO
B31: Corsi di formazione | C31: € 2,000.00 | D31: € 2,000.00 | E31: € 2,000.00 | F31: € 2,000.00 | G31: € 2,000.00 | H31: € 2,000.00 | I31: € 2,000.00 | J31: € 2,000.00 | K31: € 2,000.00 | L31: € 2,000.00 | M31: € 2,000.00 | N31: € 2,000.00 | O31: =SUM(C31:N31) -> € 24,000.00
B32: Costi di viaggio relativi alla formazione | C32: € 2,000.00 | D32: € 2,000.00 | E32: € 2,000.00 | F32: € 2,000.00 | G32: € 2,000.00 | H32: € 2,000.00 | I32: € 2,000.00 | J32: € 2,000.00 | K32: € 2,000.00 | L32: € 2,000.00 | M32: € 2,000.00 | N32: € 2,000.00 | O32: =SUM(C32:N32) -> € 24,000.00
B33: Subtotale | C33: =SUBTOTAL(109,TrainingAndTravelPlan[Gen]) -> € 4,000.00 | D33: =SUBTOTAL(109,TrainingAndTravelPlan[Feb]) -> € 4,000.00 | E33: =SUBTOTAL(109,TrainingAndTravelPlan[Mar]) -> € 4,000.00 | F33: =SUBTOTAL(109,TrainingAndTravelPlan[Apr]) -> € 4,000.00 | G33: =SUBTOTAL(109,TrainingAndTravelPlan[Mag]) -> € 4,000.00 | H33: =SUBTOTAL(109,TrainingAndTravelPlan[Giu]) -> € 4,000.00 | I33: =SUBTOTAL(109,TrainingAndTravelPlan[Lug]) -> € 4,000.00 | J33: =SUBTOTAL(109,TrainingAndTravelPlan[Ago]) -> € 4,000.00 | K33: =SUBTOTAL(109,TrainingAndTravelPlan[Set]) -> € 4,000.00 | L33: =SUBTOTAL(109,TrainingAndTravelPlan[Ott]) -> € 4,000.00 | M33: =SUBTOTAL(109,TrainingAndTravelPlan[Nov]) -> € 4,000.00 | N33: =SUBTOTAL(109,TrainingAndTravelPlan[Dic]) -> € 4,000.00 | O33: =SUBTOTAL(109,TrainingAndTravelPlan[ANNO]) -> € 48,000.00
B35: SPESE PIANIFICATE TOTALI | C35: Gen | D35: Feb | E35: Mar | F35: Apr | G35: Mag | H35: Giu | I35: Lug | J35: Ago | K35: Set | L35: Ott | M35: Nov | N35: Dic | O35: Anno
B36: Spese pianificate mensili | C36: =TrainingAndTravelPlan[[#Totals],[Gen]]+MarketingPlan[[#Totals],[Gen]]+OfficePlan[[#Totals],[Gen]]+EmployeePlan[[#Totals],[Gen]] -> € 131,420.00 | D36: =TrainingAndTravelPlan[[#Totals],[Feb]]+MarketingPlan[[#Totals],[Feb]]+OfficePlan[[#Totals],[Feb]]+EmployeePlan[[#Totals],[Feb]] -> € 126,820.00 | E36: =TrainingAndTravelPlan[[#Totals],[Mar]]+MarketingPlan[[#Totals],[Mar]]+OfficePlan[[#Totals],[Mar]]+EmployeePlan[[#Totals],[Mar]] -> € 126,820.00 | F36: =TrainingAndTravelPlan[[#Totals],[Apr]]+MarketingPlan[[#Totals],[Apr]]+OfficePlan[[#Totals],[Apr]]+EmployeePlan[[#Totals],[Apr]] -> € 137,695.00 | G36: =TrainingAndTravelPlan[[#Totals],[Mag]]+MarketingPlan[[#Totals],[Mag]]+OfficePlan[[#Totals],[Mag]]+EmployeePlan[[#Totals],[Mag]] -> € 129,695.00 | H36: =TrainingAndTravelPlan[[#Totals],[Giu]]+MarketingPlan[[#Totals],[Giu]]+OfficePlan[[#Totals],[Giu]]+EmployeePlan[[#Totals],[Giu]] -> € 130,495.00 | I36: =TrainingAndTravelPlan[[#Totals],[Lug]]+MarketingPlan[[#Totals],[Lug]]+OfficePlan[[#Totals],[Lug]]+EmployeePlan[[#Totals],[Lug]] -> € 134,695.00 | J36: =TrainingAndTravelPlan[[#Totals],[Ago]]+MarketingPlan[[#Totals],[Ago]]+OfficePlan[[#Totals],[Ago]]+EmployeePlan[[#Totals],[Ago]] -> € 138,918.00 | K36: =TrainingAndTravelPlan[[#Totals],[Set]]+MarketingPlan[[#Totals],[Set]]+OfficePlan[[#Totals],[Set]]+EmployeePlan[[#Totals],[Set]] -> € 135,918.00 | L36: =TrainingAndTravelPlan[[#Totals],[Ott]]+MarketingPlan[[#Totals],[Ott]]+OfficePlan[[#Totals],[Ott]]+EmployeePlan[[#Totals],[Ott]] -> € 140,918.00 | M36: =TrainingAndTravelPlan[[#Totals],[Nov]]+MarketingPlan[[#Totals],[Nov]]+OfficePlan[[#Totals],[Nov]]+EmployeePlan[[#Totals],[Nov]] -> € 136,218.00 | N36: =TrainingAndTravelPlan[[#Totals],[Dic]]+MarketingPlan[[#Totals],[Dic]]+OfficePlan[[#Totals],[Dic]]+EmployeePlan[[#Totals],[Dic]] -> € 140,018.00 | O36: =TrainingAndTravelPlan[[#Totals],[ANNO]]+MarketingPlan[[#Totals],[ANNO]]+OfficePlan[[#Totals],[ANNO]]+EmployeePlan[[#Totals],[ANNO]] -> € 1,609,630.00
B37: Spese pianificate TOTALI | C37: =SUM($C$36:C36) -> € 131,420.00 | D37: =SUM($C$36:D36) -> € 258,240.00 | E37: =SUM($C$36:E36) -> € 385,060.00 | F37: =SUM($C$36:F36) -> € 522,755.00 | G37: =SUM($C$36:G36) -> € 652,450.00 | H37: =SUM($C$36:H36) -> € 782,945.00 | I37: =SUM($C$36:I36) -> € 917,640.00 | J37: =SUM($C$36:J36) -> € 1,056,558.00 | K37: =SUM($C$36:K36) -> € 1,192,476.00 | L37: =SUM($C$36:L36) -> € 1,333,394.00 | M37: =SUM($C$36:M36) -> € 1,469,612.00 | N37: =SUM($C$36:N36) -> € 1,609,630.00

Sheet SPESE EFFETTIVE
B4: SPESE EFFETTIVE | C4: GEN | D4: FEB | E4: MAR | F4: APR | G4: MAG | H4: GIU | I4: LUG | J4: AGO | K4: SET | L4: OTT | M4: NOV | N4: DIC | O4: ANNO
B5: COSTI DEI DIPENDENTI | C5: Gen | D5: Feb | E5: Mar | F5: Apr | G5: Mag | H5: Giu | I5: Lug | J5: Ago | K5: Set | L5: Ott | M5: Nov | N5: Dic | O5: ANNO
B6: Stipendi | C6: € 85,000.00 | D6: € 85,000.00 | E6: € 85,000.00 | F6: € 88,000.00 | G6: € 88,000.00 | H6: € 88,000.00 | O6: =SUM(C6:N6) -> € 519,000.00
B7: Indennità | C7: =C6*0.27 -> € 22,950.00 | D7: € 22,950.00 | E7: € 22,950.00 | F7: € 23,760.00 | G7: € 23,760.00 | H7: € 23,760.00 | I7: € 0.00 | J7: € 0.00 | K7: € 0.00 | L7: € 0.00 | M7: € 0.00 | N7: € 0.00 | O7: =SUM(C7:N7) -> € 140,130.00
B8: Subtotale | C8: =SUBTOTAL(109,EmployeeActual[Gen]) -> € 107,950.00 | D8: =SUBTOTAL(109,EmployeeActual[Feb]) -> € 107,950.00 | E8: =SUBTOTAL(109,EmployeeActual[Mar]) -> € 107,950.00 | F8: =SUBTOTAL(109,EmployeeActual[Apr]) -> € 111,760.00 | G8: =SUBTOTAL(109,EmployeeActual[Mag]) -> € 111,760.00 | H8: =SUBTOTAL(109,EmployeeActual[Giu]) -> € 111,760.00 | I8: =SUBTOTAL(109,EmployeeActual[Lug]) -> € 0.00 | J8: =SUBTOTAL(109,EmployeeActual[Ago]) -> € 0.00 | K8: =SUBTOTAL(109,EmployeeActual[Set]) -> € 0.00 | L8: =SUBTOTAL(109,EmployeeActual[Ott]) -> € 0.00 | M8: =SUBTOTAL(109,EmployeeActual[Nov]) -> € 0.00 | N8: =SUBTOTAL(109,EmployeeActual[Dic]) -> € 0.00 | O8: =SUBTOTAL(109,EmployeeActual[ANNO]) -> € 659,130.00
B10: COSTI DI UFFICIO | C10: Gen | D10: Feb | E10: Mar | F10: Apr | G10: Mag | H10: Giu | I10: Lug | J10: Ago | K10: Set | L10: Ott | M10: Nov | N10: Dic | O10: ANNO
B11: Locazione di uffici | C11: € 9,800.00 | D11: € 9,800.00 | E11: € 9,800.00 | F11: € 9,800.00 | G11: € 9,800.00 | H11: € 9,800.00 | O11: =SUM(C11:N11) -> € 58,800.00
B12: Gas | C12: € 4.00 | D12: € 430.00 | E12: € 385.00 | F12: € 230.00 | G12: € 87.00 | H12: € 88.00 | O12: € 1,224.00
B13: Elettricità | C13: € 288.00 | D13: € 278.00 | E13: € 268.00 | F13: € 299.00 | G13: € 306.00 | H13: € 290.00 | O13: € 1,729.00
B14: Acqua | C14: € 35.00 | D14: € 33.00 | E14: € 34.00 | F14: € 36.00 | G14: € 34.00 | H14: € 36.00 | O14: =SUM(C14:N14) -> € 208.00
B15: Telefono | C15: € 224.00 | D15: € 235.00 | E15: € 265.00 | F15: € 245.00 | G15: € 245.00 | H15: € 220.00 | O15: € 1,434.00
B16: Accesso a Internet | C16: € 180.00 | D16: € 180.00 | E16: € 180.00 | F16: € 180.00 | G16: € 180.00 | H16: € 180.00 | O16: € 1,080.00
B17: Forniture ufficio | C17: € 256.00 | D17: € 142.00 | E17: € 160.00 | F17: € 221.00 | G17: € 256.00 | H17: € 240.00 | O17: € 1,275.00
B18: Sicurezza | C18: € 600.00 | D18: € 600.00 | E18: € 600.00 | F18: € 600.00 | G18: € 600.00 | H18: € 600.00 | O18: € 3,600.00
B19: Subtotale | C19: =SUBTOTAL(109,OfficeActual[Gen]) -> € 11,387.00 | D19: =SUBTOTAL(109,OfficeActual[Feb]) -> € 11,698.00 | E19: =SUBTOTAL(109,OfficeActual[Mar]) -> € 11,692.00 | F19: =SUBTOTAL(109,OfficeActual[Apr]) -> € 11,611.00 | G19: =SUBTOTAL(109,OfficeActual[Mag]) -> € 11,508.00 | H19: =SUBTOTAL(109,OfficeActual[Giu]) -> € 11,454.00 | I19: =SUBTOTAL(109,OfficeActual[Lug]) -> € 0.00 | J19: =SUBTOTAL(109,OfficeActual[Ago]) -> € 0.00 | K19: =SUBTOTAL(109,OfficeActual[Set]) -> € 0.00 | L19: =SUBTOTAL(109,OfficeActual[Ott]) -> € 0.00 | M19: =SUBTOTAL(109,OfficeActual[Nov]) -> € 0.00 | N19: =SUBTOTAL(109,OfficeActual[Dic]) -> € 0.00 | O19: =SUBTOTAL(109,OfficeActual[ANNO]) -> € 69,350.00
B21: COSTI DI MARKETING | C21: Gen | D21: Feb | E21: Mar | F21: Apr | G21: Mag | H21: Giu | I21: Lug | J21: Ago | K21: Set | L21: Ott | M21: Nov | N21: Dic | O21: ANNO
B22: Hosting di siti Web | C22: € 500.00 | D22: € 500.00 | E22: € 500.00 | F22: € 500.00 | G22: € 500.00 | H22: € 500.00 | O22: =SUM(C22:N22) -> € 3,000.00
B23: Aggiornamenti del sito Web | C23: € 200.00 | D23: € 200.00 | E23: € 200.00 | F23: € 200.00 | G23: € 200.00 | H23: € 1,500.00 | O23: € 2,500.00
B24: Preparazione materiale | C24: € 4,800.00 | D24: € 0.00 | E24: € 0.00 | F24: € 5,500.00 | G24: € 0.00 | H24: € 0.00 | O24: € 10,300.00
B25: Stampa materiale | C25: € 100.00 | D25: € 500.00 | E25: € 100.00 | F25: € 100.00 | G25: € 600.00 | H25: € 180.00 | O25: € 1,580.00
B26: Eventi di marketing | C26: € 1,800.00 | D26: € 2,200.00 | E26: € 2,200.00 | F26: € 4,700.00 | G26: € 1,500.00 | H26: € 2,300.00 | O26: € 14,700.00
B27: Spese varie | C27: € 145.00 | D27: € 156.00 | E27: € 123.00 | F27: € 223.00 | G27: € 187.00 | H27: € 245.00 | O27: € 1,079.00
B28: Subtotale | C28: =SUBTOTAL(109,MarketingActual[Gen]) -> € 7,545.00 | D28: =SUBTOTAL(109,MarketingActual[Feb]) -> € 3,556.00 | E28: =SUBTOTAL(109,MarketingActual[Mar]) -> € 3,123.00 | F28: =SUBTOTAL(109,MarketingActual[Apr]) -> € 11,223.00 | G28: =SUBTOTAL(109,MarketingActual[Mag]) -> € 2,987.00 | H28: =SUBTOTAL(109,MarketingActual[Giu]) -> € 4,725.00 | I28: =SUBTOTAL(109,MarketingActual[Lug]) -> € 0.00 | J28: =SUBTOTAL(109,MarketingActual[Ago]) -> € 0.00 | K28: =SUBTOTAL(109,MarketingActual[Set]) -> € 0.00 | L28: =SUBTOTAL(109,MarketingActual[Ott]) -> € 0.00 | M28: =SUBTOTAL(109,MarketingActual[Nov]) -> € 0.00 | N28: =SUBTOTAL(109,MarketingActual[Dic]) -> € 0.00 | O28: =SUBTOTAL(109,MarketingActual[ANNO]) -> € 33,159.00
B30: COSTI DI FORMAZIONE | C30: Gen | D30: Feb | E30: Mar | F30: Apr | G30: Mag | H30: Giu | I30: Lug | J30: Ago | K30: Set | L30: Ott | M30: Nov | N30: Dic | O30: ANNO
B31: Corsi di formazione | C31: € 1,600.00 | D31: € 2,400.00 | E31: € 1,400.00 | F31: € 1,600.00 | G31: € 1,200.00 | H31: € 2,800.00 | O31: =SUM(C31:N31) -> € 11,000.00
B32: Costi di viaggio relativi alla formazione | C32: € 1,200.00 | D32: € 2,200.00 | E32: € 1,400.00 | F32: € 1,200.00 | G32: € 800.00 | H32: € 3,500.00 | O32: =SUM(C32:N32) -> € 10,300.00
B33: Subtotale | C33: =SUBTOTAL(109,TrainingAndTravelActual[Gen]) -> € 2,800.00 | D33: =SUBTOTAL(109,TrainingAndTravelActual[Feb]) -> € 4,600.00 | E33: =SUBTOTAL(109,TrainingAndTravelActual[Mar]) -> € 2,800.00 | F33: =SUBTOTAL(109,TrainingAndTravelActual[Apr]) -> € 2,800.00 | G33: =SUBTOTAL(109,TrainingAndTravelActual[Mag]) -> € 2,000.00 | H33: =SUBTOTAL(109,TrainingAndTravelActual[Giu]) -> € 6,300.00 | I33: =SUBTOTAL(109,TrainingAndTravelActual[Lug]) -> € 0.00 | J33: =SUBTOTAL(109,TrainingAndTravelActual[Ago]) -> € 0.00 | K33: =SUBTOTAL(109,TrainingAndTravelActual[Set]) -> € 0.00 | L33: =SUBTOTAL(109,TrainingAndTravelActual[Ott]) -> € 0.00 | M33: =SUBTOTAL(109,TrainingAndTravelActual[Nov]) -> € 0.00 | N33: =SUBTOTAL(109,TrainingAndTravelActual[Dic]) -> € 0.00 | O33: =SUBTOTAL(109,TrainingAndTravelActual[ANNO]) -> € 21,300.00
B35: SPESE EFFETTIVE TOTALI | C35: Gen | D35: Feb | E35: Mar | F35: Apr | G35: Mag | H35: Giu | I35: Lug | J35: Ago | K35: Set | L35: Ott | M35: Nov | N35: Dic | O35: Anno
B36: Spese effettive mensili | C36: =TrainingAndTravelActual[[#Totals],[Gen]]+MarketingActual[[#Totals],[Gen]]+OfficeActual[[#Totals],[Gen]]+EmployeeActual[[#Totals],[Gen]] -> € 129,682.00 | D36: =TrainingAndTravelActual[[#Totals],[Feb]]+MarketingActual[[#Totals],[Feb]]+OfficeActual[[#Totals],[Feb]]+EmployeeActual[[#Totals],[Feb]] -> € 127,804.00 | E36: =TrainingAndTravelActual[[#Totals],[Mar]]+MarketingActual[[#Totals],[Mar]]+OfficeActual[[#Totals],[Mar]]+EmployeeActual[[#Totals],[Mar]] -> € 125,565.00 | F36: =TrainingAndTravelActual[[#Totals],[Apr]]+MarketingActual[[#Totals],[Apr]]+OfficeActual[[#Totals],[Apr]]+EmployeeActual[[#Totals],[Apr]] -> € 137,394.00 | G36: =TrainingAndTravelActual[[#Totals],[Mag]]+MarketingActual[[#Totals],[Mag]]+OfficeActual[[#Totals],[Mag]]+EmployeeActual[[#Totals],[Mag]] -> € 128,255.00 | H36: =TrainingAndTravelActual[[#Totals],[Giu]]+MarketingActual[[#Totals],[Giu]]+OfficeActual[[#Totals],[Giu]]+EmployeeActual[[#Totals],[Giu]] -> € 134,239.00 | I36: =TrainingAndTravelActual[[#Totals],[Lug]]+MarketingActual[[#Totals],[Lug]]+OfficeActual[[#Totals],[Lug]]+EmployeeActual[[#Totals],[Lug]] -> € 0.00 | J36: =TrainingAndTravelActual[[#Totals],[Ago]]+MarketingActual[[#Totals],[Ago]]+OfficeActual[[#Totals],[Ago]]+EmployeeActual[[#Totals],[Ago]] -> € 0.00 | K36: =TrainingAndTravelActual[[#Totals],[Set]]+MarketingActual[[#Totals],[Set]]+OfficeActual[[#Totals],[Set]]+EmployeeActual[[#Totals],[Set]] -> € 0.00 | L36: =TrainingAndTravelActual[[#Totals],[Ott]]+MarketingActual[[#Totals],[Ott]]+OfficeActual[[#Totals],[Ott]]+EmployeeActual[[#Totals],[Ott]] -> € 0.00 | M36: =TrainingAndTravelActual[[#Totals],[Nov]]+MarketingActual[[#Totals],[Nov]]+OfficeActual[[#Totals],[Nov]]+EmployeeActual[[#Totals],[Nov]] -> € 0.00 | N36: =TrainingAndTravelActual[[#Totals],[Dic]]+MarketingActual[[#Totals],[Dic]]+OfficeActual[[#Totals],[Dic]]+EmployeeActual[[#Totals],[Dic]] -> € 0.00 | O36: =TrainingAndTravelActual[[#Totals],[ANNO]]+MarketingActual[[#Totals],[ANNO]]+OfficeActual[[#Totals],[ANNO]]+EmployeeActual[[#Totals],[ANNO]] -> € 782,939.00
B37: Spese effettive TOTALI | C37: =SUM($C$36:C36) -> € 129,682.00 | D37: =SUM($C$36:D36) -> € 257,486.00 | E37: =SUM($C$36:E36) -> € 383,051.00 | F37: =SUM($C$36:F36) -> € 520,445.00 | G37: =SUM($C$36:G36) -> € 648,700.00 | H37: =SUM($C$36:H36) -> € 782,939.00 | I37: =SUM($C$36:I36) -> € 782,939.00 | J37: =SUM($C$36:J36) -> € 782,939.00 | K37: =SUM($C$36:K36) -> € 782,939.00 | L37: =SUM($C$36:L36) -> € 782,939.00 | M37: =SUM($C$36:M36) -> € 782,939.00 | N37: =SUM($C$36:N36) -> € 782,939.00

Sheet SCOSTAMENTI DI SPESE
B4: VARIAZIONI DI SPESA | C4: GEN | D4: FEB | E4: MAR | F4: APR | G4: MAG | H4: GIU | I4: LUG | J4: AGO | K4: SET | L4: OTT | M4: NOV | N4: DIC | O4: ANNO
B5: COSTI DEI DIPENDENTI | C5: Gen | D5: Feb | E5: Mar | F5: Apr | G5: Mag | H5: Giu | I5: Lug | J5: Ago | K5: Set | L5: Ott | M5: Nov | N5: Dic | O5: ANNO
B6: Stipendi | C6: =INDEX(EmployeePlan[],MATCH(INDEX(EmployeeVariances[],ROW()-ROW(EmployeeVariances[[#Headers],[Gen]]),1),INDEX(EmployeePlan[],,1),0),MATCH(EmployeeVariances[[#Headers],[Gen]],EmployeePlan[#Headers],0))-INDEX(EmployeeActual[],MATCH(INDEX(EmployeeVariances[],ROW()-ROW(EmployeeVariances[[#Headers],[Gen]]),1),INDEX(EmployeePlan[],,1),0),MATCH(EmployeeVariances[[#Headers],[Gen]],EmployeeActual[#Headers],0)) -> € 0.00 | D6: =INDEX(EmployeePlan[],MATCH(INDEX(EmployeeVariances[],ROW()-ROW(EmployeeVariances[[#Headers],[Feb]]),1),INDEX(EmployeePlan[],,1),0),MATCH(EmployeeVariances[[#Headers],[Feb]],EmployeePlan[#Headers],0))-INDEX(EmployeeActual[],MATCH(INDEX(EmployeeVariances[],ROW()-ROW(EmployeeVariances[[#Headers],[Feb]]),1),INDEX(EmployeePlan[],,1),0),MATCH(EmployeeVariances[[#Headers],[Feb]],EmployeeActual[#Headers],0)) -> € 0.00 | E6: =INDEX(EmployeePlan[],MATCH(INDEX(EmployeeVariances[],ROW()-ROW(EmployeeVariances[[#Headers],[Mar]]),1),INDEX(EmployeePlan[],,1),0),MATCH(EmployeeVariances[[#Headers],[Mar]],EmployeePlan[#Headers],0))-INDEX(EmployeeActual[],MATCH(INDEX(EmployeeVariances[],ROW()-ROW(EmployeeVariances[[#Headers],[Mar]]),1),INDEX(EmployeePlan[],,1),0),MATCH(EmployeeVariances[[#Headers],[Mar]],EmployeeActual[#Headers],0)) -> € 0.00 | F6: =INDEX(EmployeePlan[],MATCH(INDEX(EmployeeVariances[],ROW()-ROW(EmployeeVariances[[#Headers],[Apr]]),1),INDEX(EmployeePlan[],,1),0),MATCH(EmployeeVariances[[#Headers],[Apr]],EmployeePlan[#Headers],0))-INDEX(EmployeeActual[],MATCH(INDEX(EmployeeVariances[],ROW()-ROW(EmployeeVariances[[#Headers],[Apr]]),1),INDEX(EmployeePlan[],,1),0),MATCH(EmployeeVariances[[#Headers],[Apr]],EmployeeActual[#Headers],0)) -> -€ 500.00 | G6: =INDEX(EmployeePlan[],MATCH(INDEX(EmployeeVariances[],ROW()-ROW(EmployeeVariances[[#Headers],[Mag]]),1),INDEX(EmployeePlan[],,1),0),MATCH(EmployeeVariances[[#Headers],[Mag]],EmployeePlan[#Headers],0))-INDEX(EmployeeActual[],MATCH(INDEX(EmployeeVariances[],ROW()-ROW(EmployeeVariances[[#Headers],[Mag]]),1),INDEX(EmployeePlan[],,1),0),MATCH(EmployeeVariances[[#Headers],[Mag]],EmployeeActual[#Headers],0)) -> -€ 500.00 | H6: =INDEX(EmployeePlan[],MATCH(INDEX(EmployeeVariances[],ROW()-ROW(EmployeeVariances[[#Headers],[Giu]]),1),INDEX(EmployeePlan[],,1),0),MATCH(EmployeeVariances[[#Headers],[Giu]],EmployeePlan[#Headers],0))-INDEX(EmployeeActual[],MATCH(INDEX(EmployeeVariances[],ROW()-ROW(EmployeeVariances[[#Headers],[Giu]]),1),INDEX(EmployeePlan[],,1),0),MATCH(EmployeeVariances[[#Headers],[Giu]],EmployeeActual[#Headers],0)) -> -€ 500.00 | I6: =INDEX(EmployeePlan[],MATCH(INDEX(EmployeeVariances[],ROW()-ROW(EmployeeVariances[[#Headers],[Lug]]),1),INDEX(EmployeePlan[],,1),0),MATCH(EmployeeVariances[[#Headers],[Lug]],EmployeePlan[#Headers],0))-INDEX(EmployeeActual[],MATCH(INDEX(EmployeeVariances[],ROW()-ROW(EmployeeVariances[[#Headers],[Lug]]),1),INDEX(EmployeePlan[],,1),0),MATCH(EmployeeVariances[[#Headers],[Lug]],EmployeeActual[#Headers],0)) -> € 87,500.00 | J6: =INDEX(EmployeePlan[],MATCH(INDEX(EmployeeVariances[],ROW()-ROW(EmployeeVariances[[#Headers],[Ago]]),1),INDEX(EmployeePlan[],,1),0),MATCH(EmployeeVariances[[#Headers],[Ago]],EmployeePlan[#Headers],0))-INDEX(EmployeeActual[],MATCH(INDEX(EmployeeVariances[],ROW()-ROW(EmployeeVariances[[#Headers],[Ago]]),1),INDEX(EmployeePlan[],,1),0),MATCH(EmployeeVariances[[#Headers],[Ago]],EmployeeActual[#Headers],0)) -> € 92,400.00 | K6: =INDEX(EmployeePlan[],MATCH(INDEX(EmployeeVariances[],ROW()-ROW(EmployeeVariances[[#Headers],[Set]]),1),INDEX(EmployeePlan[],,1),0),MATCH(EmployeeVariances[[#Headers],[Set]],EmployeePlan[#Headers],0))-INDEX(EmployeeActual[],MATCH(INDEX(EmployeeVariances[],ROW()-ROW(EmployeeVariances[[#Headers],[Set]]),1),INDEX(EmployeePlan[],,1),0),MATCH(EmployeeVariances[[#Headers],[Set]],EmployeeActual[#Headers],0)) -> € 92,400.00 | L6: =INDEX(EmployeePlan[],MATCH(INDEX(EmployeeVariances[],ROW()-ROW(EmployeeVariances[[#Headers],[Ott]]),1),INDEX(EmployeePlan[],,1),0),MATCH(EmployeeVariances[[#Headers],[Ott]],EmployeePlan[#Headers],0))-INDEX(EmployeeActual[],MATCH(INDEX(EmployeeVariances[],ROW()-ROW(EmployeeVariances[[#Headers],[Ott]]),1),INDEX(EmployeePlan[],,1),0),MATCH(EmployeeVariances[[#Headers],[Ott]],EmployeeActual[#Headers],0)) -> € 92,400.00 | M6: =INDEX(EmployeePlan[],MATCH(INDEX(EmployeeVariances[],ROW()-ROW(EmployeeVariances[[#Headers],[Nov]]),1),INDEX(EmployeePlan[],,1),0),MATCH(EmployeeVariances[[#Headers],[Nov]],EmployeePlan[#Headers],0))-INDEX(EmployeeActual[],MATCH(INDEX(EmployeeVariances[],ROW()-ROW(EmployeeVariances[[#Headers],[Nov]]),1),INDEX(EmployeePlan[],,1),0),MATCH(EmployeeVariances[[#Headers],[Nov]],EmployeeActual[#Headers],0)) -> € 92,400.00 | N6: =INDEX(EmployeePlan[],MATCH(INDEX(EmployeeVariances[],ROW()-ROW(EmployeeVariances[[#Headers],[Dic]]),1),INDEX(EmployeePlan[],,1),0),MATCH(EmployeeVariances[[#Headers],[Dic]],EmployeePlan[#Headers],0))-INDEX(EmployeeActual[],MATCH(INDEX(EmployeeVariances[],ROW()-ROW(EmployeeVariances[[#Headers],[Dic]]),1),INDEX(EmployeePlan[],,1),0),MATCH(EmployeeVariances[[#Headers],[Dic]],EmployeeActual[#Headers],0)) -> € 92,400.00 | O6: =SUM(EmployeeVariances[[#This Row],[Gen]:[Dic]]) -> € 548,000.00
B7: Indennità | C7: =INDEX(EmployeePlan[],MATCH(INDEX(EmployeeVariances[],ROW()-ROW(EmployeeVariances[[#Headers],[Gen]]),1),INDEX(EmployeePlan[],,1),0),MATCH(EmployeeVariances[[#Headers],[Gen]],EmployeePlan[#Headers],0))-INDEX(EmployeeActual[],MATCH(INDEX(EmployeeVariances[],ROW()-ROW(EmployeeVariances[[#Headers],[Gen]]),1),INDEX(EmployeePlan[],,1),0),MATCH(EmployeeVariances[[#Headers],[Gen]],EmployeeActual[#Headers],0)) -> € 0.00 | D7: =INDEX(EmployeePlan[],MATCH(INDEX(EmployeeVariances[],ROW()-ROW(EmployeeVariances[[#Headers],[Feb]]),1),INDEX(EmployeePlan[],,1),0),MATCH(EmployeeVariances[[#Headers],[Feb]],EmployeePlan[#Headers],0))-INDEX(EmployeeActual[],MATCH(INDEX(EmployeeVariances[],ROW()-ROW(EmployeeVariances[[#Headers],[Feb]]),1),INDEX(EmployeePlan[],,1),0),MATCH(EmployeeVariances[[#Headers],[Feb]],EmployeeActual[#Headers],0)) -> € 0.00 | E7: =INDEX(EmployeePlan[],MATCH(INDEX(EmployeeVariances[],ROW()-ROW(EmployeeVariances[[#Headers],[Mar]]),1),INDEX(EmployeePlan[],,1),0),MATCH(EmployeeVariances[[#Headers],[Mar]],EmployeePlan[#Headers],0))-INDEX(EmployeeActual[],MATCH(INDEX(EmployeeVariances[],ROW()-ROW(EmployeeVariances[[#Headers],[Mar]]),1),INDEX(EmployeePlan[],,1),0),MATCH(EmployeeVariances[[#Headers],[Mar]],EmployeeActual[#Headers],0)) -> € 0.00 | F7: =INDEX(EmployeePlan[],MATCH(INDEX(EmployeeVariances[],ROW()-ROW(EmployeeVariances[[#Headers],[Apr]]),1),INDEX(EmployeePlan[],,1),0),MATCH(EmployeeVariances[[#Headers],[Apr]],EmployeePlan[#Headers],0))-INDEX(EmployeeActual[],MATCH(INDEX(EmployeeVariances[],ROW()-ROW(EmployeeVariances[[#Headers],[Apr]]),1),INDEX(EmployeePlan[],,1),0),MATCH(EmployeeVariances[[#Headers],[Apr]],EmployeeActual[#Headers],0)) -> -€ 135.00 | G7: =INDEX(EmployeePlan[],MATCH(INDEX(EmployeeVariances[],ROW()-ROW(EmployeeVariances[[#Headers],[Mag]]),1),INDEX(EmployeePlan[],,1),0),MATCH(EmployeeVariances[[#Headers],[Mag]],EmployeePlan[#Headers],0))-INDEX(EmployeeActual[],MATCH(INDEX(EmployeeVariances[],ROW()-ROW(EmployeeVariances[[#Headers],[Mag]]),1),INDEX(EmployeePlan[],,1),0),MATCH(EmployeeVariances[[#Headers],[Mag]],EmployeeActual[#Headers],0)) -> -€ 135.00 | H7: =INDEX(EmployeePlan[],MATCH(INDEX(EmployeeVariances[],ROW()-ROW(EmployeeVariances[[#Headers],[Giu]]),1),INDEX(EmployeePlan[],,1),0),MATCH(EmployeeVariances[[#Headers],[Giu]],EmployeePlan[#Headers],0))-INDEX(EmployeeActual[],MATCH(INDEX(EmployeeVariances[],ROW()-ROW(EmployeeVariances[[#Headers],[Giu]]),1),INDEX(EmployeePlan[],,1),0),MATCH(EmployeeVariances[[#Headers],[Giu]],EmployeeActual[#Headers],0)) -> -€ 135.00 | I7: =INDEX(EmployeePlan[],MATCH(INDEX(EmployeeVariances[],ROW()-ROW(EmployeeVariances[[#Headers],[Lug]]),1),INDEX(EmployeePlan[],,1),0),MATCH(EmployeeVariances[[#Headers],[Lug]],EmployeePlan[#Headers],0))-INDEX(EmployeeActual[],MATCH(INDEX(EmployeeVariances[],ROW()-ROW(EmployeeVariances[[#Headers],[Lug]]),1),INDEX(EmployeePlan[],,1),0),MATCH(EmployeeVariances[[#Headers],[Lug]],EmployeeActual[#Headers],0)) -> € 23,625.00 | J7: =INDEX(EmployeePlan[],MATCH(INDEX(EmployeeVariances[],ROW()-ROW(EmployeeVariances[[#Headers],[Ago]]),1),INDEX(EmployeePlan[],,1),0),MATCH(EmployeeVariances[[#Headers],[Ago]],EmployeePlan[#Headers],0))-INDEX(EmployeeActual[],MATCH(INDEX(EmployeeVariances[],ROW()-ROW(EmployeeVariances[[#Headers],[Ago]]),1),INDEX(EmployeePlan[],,1),0),MATCH(EmployeeVariances[[#Headers],[Ago]],EmployeeActual[#Headers],0)) -> € 24,948.00 | K7: =INDEX(EmployeePlan[],MATCH(INDEX(EmployeeVariances[],ROW()-ROW(EmployeeVariances[[#Headers],[Set]]),1),INDEX(EmployeePlan[],,1),0),MATCH(EmployeeVariances[[#Headers],[Set]],EmployeePlan[#Headers],0))-INDEX(EmployeeActual[],MATCH(INDEX(EmployeeVariances[],ROW()-ROW(EmployeeVariances[[#Headers],[Set]]),1),INDEX(EmployeePlan[],,1),0),MATCH(EmployeeVariances[[#Headers],[Set]],EmployeeActual[#Headers],0)) -> € 24,948.00 | L7: =INDEX(EmployeePlan[],MATCH(INDEX(EmployeeVariances[],ROW()-ROW(EmployeeVariances[[#Headers],[Ott]]),1),INDEX(EmployeePlan[],,1),0),MATCH(EmployeeVariances[[#Headers],[Ott]],EmployeePlan[#Headers],0))-INDEX(EmployeeActual[],MATCH(INDEX(EmployeeVariances[],ROW()-ROW(EmployeeVariances[[#Headers],[Ott]]),1),INDEX(EmployeePlan[],,1),0),MATCH(EmployeeVariances[[#Headers],[Ott]],EmployeeActual[#Headers],0)) -> € 24,948.00 | M7: =INDEX(EmployeePlan[],MATCH(INDEX(EmployeeVariances[],ROW()-ROW(EmployeeVariances[[#Headers],[Nov]]),1),INDEX(EmployeePlan[],,1),0),MATCH(EmployeeVariances[[#Headers],[Nov]],EmployeePlan[#Headers],0))-INDEX(EmployeeActual[],MATCH(INDEX(EmployeeVariances[],ROW()-ROW(EmployeeVariances[[#Headers],[Nov]]),1),INDEX(EmployeePlan[],,1),0),MATCH(EmployeeVariances[[#Headers],[Nov]],EmployeeActual[#Headers],0)) -> € 24,948.00 | N7: =INDEX(EmployeePlan[],MATCH(INDEX(EmployeeVariances[],ROW()-ROW(EmployeeVariances[[#Headers],[Dic]]),1),INDEX(EmployeePlan[],,1),0),MATCH(EmployeeVariances[[#Headers],[Dic]],EmployeePlan[#Headers],0))-INDEX(EmployeeActual[],MATCH(INDEX(EmployeeVariances[],ROW()-ROW(EmployeeVariances[[#Headers],[Dic]]),1),INDEX(EmployeePlan[],,1),0),MATCH(EmployeeVariances[[#Headers],[Dic]],EmployeeActual[#Headers],0)) -> € 24,948.00 | O7: =SUM(EmployeeVariances[[#This Row],[Gen]:[Dic]]) -> € 147,960.00
B8: Subtotale | C8: =SUBTOTAL(109,EmployeeVariances[Gen]) -> € 0.00 | D8: =SUBTOTAL(109,EmployeeVariances[Feb]) -> € 0.00 | E8: =SUBTOTAL(109,EmployeeVariances[Mar]) -> € 0.00 | F8: =SUBTOTAL(109,EmployeeVariances[Apr]) -> -€ 635.00 | G8: =SUBTOTAL(109,EmployeeVariances[Mag]) -> -€ 635.00 | H8: =SUBTOTAL(109,EmployeeVariances[Giu]) -> -€ 635.00 | I8: =SUBTOTAL(109,EmployeeVariances[Lug]) -> € 111,125.00 | J8: =SUBTOTAL(109,EmployeeVariances[Ago]) -> € 117,348.00 | K8: =SUBTOTAL(109,EmployeeVariances[Set]) -> € 117,348.00 | L8: =SUBTOTAL(109,EmployeeVariances[Ott]) -> € 117,348.00 | M8: =SUBTOTAL(109,EmployeeVariances[Nov]) -> € 117,348.00 | N8: =SUBTOTAL(109,EmployeeVariances[Dic]) -> € 117,348.00 | O8: =SUBTOTAL(109,EmployeeVariances[ANNO]) -> € 695,960.00
B10: COSTI DI UFFICIO | C10: Gen | D10: Feb | E10: Mar | F10: Apr | G10: Mag | H10: Giu | I10: Lug | J10: Ago | K10: Set | L10: Ott | M10: Nov | N10: Dic | O10: ANNO
B11: Locazione di uffici | C11: =INDEX(OfficePlan[],MATCH(INDEX(OfficeVariances[],ROW()-ROW(OfficeVariances[[#Headers],[Gen]]),1),INDEX(OfficePlan[],,1),0),MATCH(OfficeVariances[[#Headers],[Gen]],OfficePlan[#Headers],0))-INDEX(OfficeActual[],MATCH(INDEX(OfficeVariances[],ROW()-ROW(OfficeVariances[[#Headers],[Gen]]),1),INDEX(OfficePlan[],,1),0),MATCH(OfficeVariances[[#Headers],[Gen]],OfficeActual[#Headers],0)) -> € 0.00 | D11: =INDEX(OfficePlan[],MATCH(INDEX(OfficeVariances[],ROW()-ROW(OfficeVariances[[#Headers],[Feb]]),1),INDEX(OfficePlan[],,1),0),MATCH(OfficeVariances[[#Headers],[Feb]],OfficePlan[#Headers],0))-INDEX(OfficeActual[],MATCH(INDEX(OfficeVariances[],ROW()-ROW(OfficeVariances[[#Headers],[Feb]]),1),INDEX(OfficePlan[],,1),0),MATCH(OfficeVariances[[#Headers],[Feb]],OfficeActual[#Headers],0)) -> € 0.00 | E11: =INDEX(OfficePlan[],MATCH(INDEX(OfficeVariances[],ROW()-ROW(OfficeVariances[[#Headers],[Mar]]),1),INDEX(OfficePlan[],,1),0),MATCH(OfficeVariances[[#Headers],[Mar]],OfficePlan[#Headers],0))-INDEX(OfficeActual[],MATCH(INDEX(OfficeVariances[],ROW()-ROW(OfficeVariances[[#Headers],[Mar]]),1),INDEX(OfficePlan[],,1),0),MATCH(OfficeVariances[[#Headers],[Mar]],OfficeActual[#Headers],0)) -> € 0.00 | F11: =INDEX(OfficePlan[],MATCH(INDEX(OfficeVariances[],ROW()-ROW(OfficeVariances[[#Headers],[Apr]]),1),INDEX(OfficePlan[],,1),0),MATCH(OfficeVariances[[#Headers],[Apr]],OfficePlan[#Headers],0))-INDEX(OfficeActual[],MATCH(INDEX(OfficeVariances[],ROW()-ROW(OfficeVariances[[#Headers],[Apr]]),1),INDEX(OfficePlan[],,1),0),MATCH(OfficeVariances[[#Headers],[Apr]],OfficeActual[#Headers],0)) -> € 0.00 | G11: =INDEX(OfficePlan[],MATCH(INDEX(OfficeVariances[],ROW()-ROW(OfficeVariances[[#Headers],[Mag]]),1),INDEX(OfficePlan[],,1),0),MATCH(OfficeVariances[[#Headers],[Mag]],OfficePlan[#Headers],0))-INDEX(OfficeActual[],MATCH(INDEX(OfficeVariances[],ROW()-ROW(OfficeVariances[[#Headers],[Mag]]),1),INDEX(OfficePlan[],,1),0),MATCH(OfficeVariances[[#Headers],[Mag]],OfficeActual[#Headers],0)) -> € 0.00 | H11: =INDEX(OfficePlan[],MATCH(INDEX(OfficeVariances[],ROW()-ROW(OfficeVariances[[#Headers],[Giu]]),1),INDEX(OfficePlan[],,1),0),MATCH(OfficeVariances[[#Headers],[Giu]],OfficePlan[#Headers],0))-INDEX(OfficeActual[],MATCH(INDEX(OfficeVariances[],ROW()-ROW(OfficeVariances[[#Headers],[Giu]]),1),INDEX(OfficePlan[],,1),0),MATCH(OfficeVariances[[#Headers],[Giu]],OfficeActual[#Headers],0)) -> € 0.00 | I11: =INDEX(OfficePlan[],MATCH(INDEX(OfficeVariances[],ROW()-ROW(OfficeVariances[[#Headers],[Lug]]),1),INDEX(OfficePlan[],,1),0),MATCH(OfficeVariances[[#Headers],[Lug]],OfficePlan[#Headers],0))-INDEX(OfficeActual[],MATCH(INDEX(OfficeVariances[],ROW()-ROW(OfficeVariances[[#Headers],[Lug]]),1),INDEX(OfficePlan[],,1),0),MATCH(OfficeVariances[[#Headers],[Lug]],OfficeActual[#Headers],0)) -> € 9,800.00 | J11: =INDEX(OfficePlan[],MATCH(INDEX(OfficeVariances[],ROW()-ROW(OfficeVariances[[#Headers],[Ago]]),1),INDEX(OfficePlan[],,1),0),MATCH(OfficeVariances[[#Headers],[Ago]],OfficePlan[#Headers],0))-INDEX(OfficeActual[],MATCH(INDEX(OfficeVariances[],ROW()-ROW(OfficeVariances[[#Headers],[Ago]]),1),INDEX(OfficePlan[],,1),0),MATCH(OfficeVariances[[#Headers],[Ago]],OfficeActual[#Headers],0)) -> € 9,800.00 | K11: =INDEX(OfficePlan[],MATCH(INDEX(OfficeVariances[],ROW()-ROW(OfficeVariances[[#Headers],[Set]]),1),INDEX(OfficePlan[],,1),0),MATCH(OfficeVariances[[#Headers],[Set]],OfficePlan[#Headers],0))-INDEX(OfficeActual[],MATCH(INDEX(OfficeVariances[],ROW()-ROW(OfficeVariances[[#Headers],[Set]]),1),INDEX(OfficePlan[],,1),0),MATCH(OfficeVariances[[#Headers],[Set]],OfficeActual[#Headers],0)) -> € 9,800.00 | L11: =INDEX(OfficePlan[],MATCH(INDEX(OfficeVariances[],ROW()-ROW(OfficeVariances[[#Headers],[Ott]]),1),INDEX(OfficePlan[],,1),0),MATCH(OfficeVariances[[#Headers],[Ott]],OfficePlan[#Headers],0))-INDEX(OfficeActual[],MATCH(INDEX(OfficeVariances[],ROW()-ROW(OfficeVariances[[#Headers],[Ott]]),1),INDEX(OfficePlan[],,1),0),MATCH(OfficeVariances[[#Headers],[Ott]],OfficeActual[#Headers],0)) -> € 9,800.00 | M11: =INDEX(OfficePlan[],MATCH(INDEX(OfficeVariances[],ROW()-ROW(OfficeVariances[[#Headers],[Nov]]),1),INDEX(OfficePlan[],,1),0),MATCH(OfficeVariances[[#Headers],[Nov]],OfficePlan[#Headers],0))-INDEX(OfficeActual[],MATCH(INDEX(OfficeVariances[],ROW()-ROW(OfficeVariances[[#Headers],[Nov]]),1),INDEX(OfficePlan[],,1),0),MATCH(OfficeVariances[[#Headers],[Nov]],OfficeActual[#Headers],0)) -> € 9,800.00 | N11: =INDEX(OfficePlan[],MATCH(INDEX(OfficeVariances[],ROW()-ROW(OfficeVariances[[#Headers],[Dic]]),1),INDEX(OfficePlan[],,1),0),MATCH(OfficeVariances[[#Headers],[Dic]],OfficePlan[#Headers],0))-INDEX(OfficeActual[],MATCH(INDEX(OfficeVariances[],ROW()-ROW(OfficeVariances[[#Headers],[Dic]]),1),INDEX(OfficePlan[],,1),0),MATCH(OfficeVariances[[#Headers],[Dic]],OfficeActual[#Headers],0)) -> € 9,800.00 | O11: =SUM(OfficeVariances[[#This Row],[Gen]:[Dic]]) -> € 58,800.00
B12: Gas | C12: =INDEX(OfficePlan[],MATCH(INDEX(OfficeVariances[],ROW()-ROW(OfficeVariances[[#Headers],[Gen]]),1),INDEX(OfficePlan[],,1),0),MATCH(OfficeVariances[[#Headers],[Gen]],OfficePlan[#Headers],0))-INDEX(OfficeActual[],MATCH(INDEX(OfficeVariances[],ROW()-ROW(OfficeVariances[[#Headers],[Gen]]),1),INDEX(OfficePlan[],,1),0),MATCH(OfficeVariances[[#Headers],[Gen]],OfficeActual[#Headers],0)) -> -€ 4.00 | D12: =INDEX(OfficePlan[],MATCH(INDEX(OfficeVariances[],ROW()-ROW(OfficeVariances[[#Headers],[Feb]]),1),INDEX(OfficePlan[],,1),0),MATCH(OfficeVariances[[#Headers],[Feb]],OfficePlan[#Headers],0))-INDEX(OfficeActual[],MATCH(INDEX(OfficeVariances[],ROW()-ROW(OfficeVariances[[#Headers],[Feb]]),1),INDEX(OfficePlan[],,1),0),MATCH(OfficeVariances[[#Headers],[Feb]],OfficeActual[#Headers],0)) -> -€ 30.00 | E12: =INDEX(OfficePlan[],MATCH(INDEX(OfficeVariances[],ROW()-ROW(OfficeVariances[[#Headers],[Mar]]),1),INDEX(OfficePlan[],,1),0),MATCH(OfficeVariances[[#Headers],[Mar]],OfficePlan[#Headers],0))-INDEX(OfficeActual[],MATCH(INDEX(OfficeVariances[],ROW()-ROW(OfficeVariances[[#Headers],[Mar]]),1),INDEX(OfficePlan[],,1),0),MATCH(OfficeVariances[[#Headers],[Mar]],OfficeActual[#Headers],0)) -> € 15.00 | F12: =INDEX(OfficePlan[],MATCH(INDEX(OfficeVariances[],ROW()-ROW(OfficeVariances[[#Headers],[Apr]]),1),INDEX(OfficePlan[],,1),0),MATCH(OfficeVariances[[#Headers],[Apr]],OfficePlan[#Headers],0))-INDEX(OfficeActual[],MATCH(INDEX(OfficeVariances[],ROW()-ROW(OfficeVariances[[#Headers],[Apr]]),1),INDEX(OfficePlan[],,1),0),MATCH(OfficeVariances[[#Headers],[Apr]],OfficeActual[#Headers],0)) -> -€ 130.00 | G12: =INDEX(OfficePlan[],MATCH(INDEX(OfficeVariances[],ROW()-ROW(OfficeVariances[[#Headers],[Mag]]),1),INDEX(OfficePlan[],,1),0),MATCH(OfficeVariances[[#Headers],[Mag]],OfficePlan[#Headers],0))-INDEX(OfficeActual[],MATCH(INDEX(OfficeVariances[],ROW()-ROW(OfficeVariances[[#Headers],[Mag]]),1),INDEX(OfficePlan[],,1),0),MATCH(OfficeVariances[[#Headers],[Mag]],OfficeActual[#Headers],0)) -> € 13.00 | H12: =INDEX(OfficePlan[],MATCH(INDEX(OfficeVariances[],ROW()-ROW(OfficeVariances[[#Headers],[Giu]]),1),INDEX(OfficePlan[],,1),0),MATCH(OfficeVariances[[#Headers],[Giu]],OfficePlan[#Headers],0))-INDEX(OfficeActual[],MATCH(INDEX(OfficeVariances[],ROW()-ROW(OfficeVariances[[#Headers],[Giu]]),1),INDEX(OfficePlan[],,1),0),MATCH(OfficeVariances[[#Headers],[Giu]],OfficeActual[#Headers],0)) -> € 12.00 | I12: =INDEX(OfficePlan[],MATCH(INDEX(OfficeVariances[],ROW()-ROW(OfficeVariances[[#Headers],[Lug]]),1),INDEX(OfficePlan[],,1),0),MATCH(OfficeVariances[[#Headers],[Lug]],OfficePlan[#Headers],0))-INDEX(OfficeActual[],MATCH(INDEX(OfficeVariances[],ROW()-ROW(OfficeVariances[[#Headers],[Lug]]),1),INDEX(OfficePlan[],,1),0),MATCH(OfficeVariances[[#Headers],[Lug]],OfficeActual[#Headers],0)) -> € 100.00 | J12: =INDEX(OfficePlan[],MATCH(INDEX(OfficeVariances[],ROW()-ROW(OfficeVariances[[#Headers],[Ago]]),1),INDEX(OfficePlan[],,1),0),MATCH(OfficeVariances[[#Headers],[Ago]],OfficePlan[#Headers],0))-INDEX(OfficeActual[],MATCH(INDEX(OfficeVariances[],ROW()-ROW(OfficeVariances[[#Headers],[Ago]]),1),INDEX(OfficePlan[],,1),0),MATCH(OfficeVariances[[#Headers],[Ago]],OfficeActual[#Headers],0)) -> € 100.00 | K12: =INDEX(OfficePlan[],MATCH(INDEX(OfficeVariances[],ROW()-ROW(OfficeVariances[[#Headers],[Set]]),1),INDEX(OfficePlan[],,1),0),MATCH(OfficeVariances[[#Headers],[Set]],OfficePlan[#Headers],0))-INDEX(OfficeActual[],MATCH(INDEX(OfficeVariances[],ROW()-ROW(OfficeVariances[[#Headers],[Set]]),1),INDEX(OfficePlan[],,1),0),MATCH(OfficeVariances[[#Headers],[Set]],OfficeActual[#Headers],0)) -> € 100.00 | L12: =INDEX(OfficePlan[],MATCH(INDEX(OfficeVariances[],ROW()-ROW(OfficeVariances[[#Headers],[Ott]]),1),INDEX(OfficePlan[],,1),0),MATCH(OfficeVariances[[#Headers],[Ott]],OfficePlan[#Headers],0))-INDEX(OfficeActual[],MATCH(INDEX(OfficeVariances[],ROW()-ROW(OfficeVariances[[#Headers],[Ott]]),1),INDEX(OfficePlan[],,1),0),MATCH(OfficeVariances[[#Headers],[Ott]],OfficeActual[#Headers],0)) -> € 100.00 | M12: =INDEX(OfficePlan[],MATCH(INDEX(OfficeVariances[],ROW()-ROW(OfficeVariances[[#Headers],[Nov]]),1),INDEX(OfficePlan[],,1),0),MATCH(OfficeVariances[[#Headers],[Nov]],OfficePlan[#Headers],0))-INDEX(OfficeActual[],MATCH(INDEX(OfficeVariances[],ROW()-ROW(OfficeVariances[[#Headers],[Nov]]),1),INDEX(OfficePlan[],,1),0),MATCH(OfficeVariances[[#Headers],[Nov]],OfficeActual[#Headers],0)) -> € 400.00 | N12: =INDEX(OfficePlan[],MATCH(INDEX(OfficeVariances[],ROW()-ROW(OfficeVariances[[#Headers],[Dic]]),1),INDEX(OfficePlan[],,1),0),MATCH(OfficeVariances[[#Headers],[Dic]],OfficePlan[#Headers],0))-INDEX(OfficeActual[],MATCH(INDEX(OfficeVariances[],ROW()-ROW(OfficeVariances[[#Headers],[Dic]]),1),INDEX(OfficePlan[],,1),0),MATCH(OfficeVariances[[#Headers],[Dic]],OfficeActual[#Headers],0)) -> € 400.00 | O12: =SUM(OfficeVariances[[#This Row],[Gen]:[Dic]]) -> € 1,076.00
B13: Elettricità | C13: =INDEX(OfficePlan[],MATCH(INDEX(OfficeVariances[],ROW()-ROW(OfficeVariances[[#Headers],[Gen]]),1),INDEX(OfficePlan[],,1),0),MATCH(OfficeVariances[[#Headers],[Gen]],OfficePlan[#Headers],0))-INDEX(OfficeActual[],MATCH(INDEX(OfficeVariances[],ROW()-ROW(OfficeVariances[[#Headers],[Gen]]),1),INDEX(OfficePlan[],,1),0),MATCH(OfficeVariances[[#Headers],[Gen]],OfficeActual[#Headers],0)) -> € 12.00 | D13: =INDEX(OfficePlan[],MATCH(INDEX(OfficeVariances[],ROW()-ROW(OfficeVariances[[#Headers],[Feb]]),1),INDEX(OfficePlan[],,1),0),MATCH(OfficeVariances[[#Headers],[Feb]],OfficePlan[#Headers],0))-INDEX(OfficeActual[],MATCH(INDEX(OfficeVariances[],ROW()-ROW(OfficeVariances[[#Headers],[Feb]]),1),INDEX(OfficePlan[],,1),0),MATCH(OfficeVariances[[#Headers],[Feb]],OfficeActual[#Headers],0)) -> € 22.00 | E13: =INDEX(OfficePlan[],MATCH(INDEX(OfficeVariances[],ROW()-ROW(OfficeVariances[[#Headers],[Mar]]),1),INDEX(OfficePlan[],,1),0),MATCH(OfficeVariances[[#Headers],[Mar]],OfficePlan[#Headers],0))-INDEX(OfficeActual[],MATCH(INDEX(OfficeVariances[],ROW()-ROW(OfficeVariances[[#Headers],[Mar]]),1),INDEX(OfficePlan[],,1),0),MATCH(OfficeVariances[[#Headers],[Mar]],OfficeActual[#Headers],0)) -> € 32.00 | F13: =INDEX(OfficePlan[],MATCH(INDEX(OfficeVariances[],ROW()-ROW(OfficeVariances[[#Headers],[Apr]]),1),INDEX(OfficePlan[],,1),0),MATCH(OfficeVariances[[#Headers],[Apr]],OfficePlan[#Headers],0))-INDEX(OfficeActual[],MATCH(INDEX(OfficeVariances[],ROW()-ROW(OfficeVariances[[#Headers],[Apr]]),1),INDEX(OfficePlan[],,1),0),MATCH(OfficeVariances[[#Headers],[Apr]],OfficeActual[#Headers],0)) -> € 1.00 | G13: =INDEX(OfficePlan[],MATCH(INDEX(OfficeVariances[],ROW()-ROW(OfficeVariances[[#Headers],[Mag]]),1),INDEX(OfficePlan[],,1),0),MATCH(OfficeVariances[[#Headers],[Mag]],OfficePlan[#Headers],0))-INDEX(OfficeActual[],MATCH(INDEX(OfficeVariances[],ROW()-ROW(OfficeVariances[[#Headers],[Mag]]),1),INDEX(OfficePlan[],,1),0),MATCH(OfficeVariances[[#Headers],[Mag]],OfficeActual[#Headers],0)) -> -€ 6.00 | H13: =INDEX(OfficePlan[],MATCH(INDEX(OfficeVariances[],ROW()-ROW(OfficeVariances[[#Headers],[Giu]]),1),INDEX(OfficePlan[],,1),0),MATCH(OfficeVariances[[#Headers],[Giu]],OfficePlan[#Headers],0))-INDEX(OfficeActual[],MATCH(INDEX(OfficeVariances[],ROW()-ROW(OfficeVariances[[#Headers],[Giu]]),1),INDEX(OfficePlan[],,1),0),MATCH(OfficeVariances[[#Headers],[Giu]],OfficeActual[#Headers],0)) -> € 10.00 | I13: =INDEX(OfficePlan[],MATCH(INDEX(OfficeVariances[],ROW()-ROW(OfficeVariances[[#Headers],[Lug]]),1),INDEX(OfficePlan[],,1),0),MATCH(OfficeVariances[[#Headers],[Lug]],OfficePlan[#Headers],0))-INDEX(OfficeActual[],MATCH(INDEX(OfficeVariances[],ROW()-ROW(OfficeVariances[[#Headers],[Lug]]),1),INDEX(OfficePlan[],,1),0),MATCH(OfficeVariances[[#Headers],[Lug]],OfficeActual[#Headers],0)) -> € 300.00 | J13: =INDEX(OfficePlan[],MATCH(INDEX(OfficeVariances[],ROW()-ROW(OfficeVariances[[#Headers],[Ago]]),1),INDEX(OfficePlan[],,1),0),MATCH(OfficeVariances[[#Headers],[Ago]],OfficePlan[#Headers],0))-INDEX(OfficeActual[],MATCH(INDEX(OfficeVariances[],ROW()-ROW(OfficeVariances[[#Headers],[Ago]]),1),INDEX(OfficePlan[],,1),0),MATCH(OfficeVariances[[#Headers],[Ago]],OfficeActual[#Headers],0)) -> € 300.00 | K13: =INDEX(OfficePlan[],MATCH(INDEX(OfficeVariances[],ROW()-ROW(OfficeVariances[[#Headers],[Set]]),1),INDEX(OfficePlan[],,1),0),MATCH(OfficeVariances[[#Headers],[Set]],OfficePlan[#Headers],0))-INDEX(OfficeActual[],MATCH(INDEX(OfficeVariances[],ROW()-ROW(OfficeVariances[[#Headers],[Set]]),1),INDEX(OfficePlan[],,1),0),MATCH(OfficeVariances[[#Headers],[Set]],OfficeActual[#Headers],0)) -> € 300.00 | L13: =INDEX(OfficePlan[],MATCH(INDEX(OfficeVariances[],ROW()-ROW(OfficeVariances[[#Headers],[Ott]]),1),INDEX(OfficePlan[],,1),0),MATCH(OfficeVariances[[#Headers],[Ott]],OfficePlan[#Headers],0))-INDEX(OfficeActual[],MATCH(INDEX(OfficeVariances[],ROW()-ROW(OfficeVariances[[#Headers],[Ott]]),1),INDEX(OfficePlan[],,1),0),MATCH(OfficeVariances[[#Headers],[Ott]],OfficeActual[#Headers],0)) -> € 300.00 | M13: =INDEX(OfficePlan[],MATCH(INDEX(OfficeVariances[],ROW()-ROW(OfficeVariances[[#Headers],[Nov]]),1),INDEX(OfficePlan[],,1),0),MATCH(OfficeVariances[[#Headers],[Nov]],OfficePlan[#Headers],0))-INDEX(OfficeActual[],MATCH(INDEX(OfficeVariances[],ROW()-ROW(OfficeVariances[[#Headers],[Nov]]),1),INDEX(OfficePlan[],,1),0),MATCH(OfficeVariances[[#Headers],[Nov]],OfficeActual[#Headers],0)) -> € 300.00 | N13: =INDEX(OfficePlan[],MATCH(INDEX(OfficeVariances[],ROW()-ROW(OfficeVariances[[#Headers],[Dic]]),1),INDEX(OfficePlan[],,1),0),MATCH(OfficeVariances[[#Headers],[Dic]],OfficePlan[#Headers],0))-INDEX(OfficeActual[],MATCH(INDEX(OfficeVariances[],ROW()-ROW(OfficeVariances[[#Headers],[Dic]]),1),INDEX(OfficePlan[],,1),0),MATCH(OfficeVariances[[#Headers],[Dic]],OfficeActual[#Headers],0)) -> € 300.00 | O13: =SUM(OfficeVariances[[#This Row],[Gen]:[Dic]]) -> € 1,871.00
B14: Acqua | C14: =INDEX(OfficePlan[],MATCH(INDEX(OfficeVariances[],ROW()-ROW(OfficeVariances[[#Headers],[Gen]]),1),INDEX(OfficePlan[],,1),0),MATCH(OfficeVariances[[#Headers],[Gen]],OfficePlan[#Headers],0))-INDEX(OfficeActual[],MATCH(INDEX(OfficeVariances[],ROW()-ROW(OfficeVariances[[#Headers],[Gen]]),1),INDEX(OfficePlan[],,1),0),MATCH(OfficeVariances[[#Headers],[Gen]],OfficeActual[#Headers],0)) -> € 5.00 | D14: =INDEX(OfficePlan[],MATCH(INDEX(OfficeVariances[],ROW()-ROW(OfficeVariances[[#Headers],[Feb]]),1),INDEX(OfficePlan[],,1),0),MATCH(OfficeVariances[[#Headers],[Feb]],OfficePlan[#Headers],0))-INDEX(OfficeActual[],MATCH(INDEX(OfficeVariances[],ROW()-ROW(OfficeVariances[[#Headers],[Feb]]),1),INDEX(OfficePlan[],,1),0),MATCH(OfficeVariances[[#Headers],[Feb]],OfficeActual[#Headers],0)) -> € 7.00 | E14: =INDEX(OfficePlan[],MATCH(INDEX(OfficeVariances[],ROW()-ROW(OfficeVariances[[#Headers],[Mar]]),1),INDEX(OfficePlan[],,1),0),MATCH(OfficeVariances[[#Headers],[Mar]],OfficePlan[#Headers],0))-INDEX(OfficeActual[],MATCH(INDEX(OfficeVariances[],ROW()-ROW(OfficeVariances[[#Headers],[Mar]]),1),INDEX(OfficePlan[],,1),0),MATCH(OfficeVariances[[#Headers],[Mar]],OfficeActual[#Headers],0)) -> € 6.00 | F14: =INDEX(OfficePlan[],MATCH(INDEX(OfficeVariances[],ROW()-ROW(OfficeVariances[[#Headers],[Apr]]),1),INDEX(OfficePlan[],,1),0),MATCH(OfficeVariances[[#Headers],[Apr]],OfficePlan[#Headers],0))-INDEX(OfficeActual[],MATCH(INDEX(OfficeVariances[],ROW()-ROW(OfficeVariances[[#Headers],[Apr]]),1),INDEX(OfficePlan[],,1),0),MATCH(OfficeVariances[[#Headers],[Apr]],OfficeActual[#Headers],0)) -> € 4.00 | G14: =INDEX(OfficePlan[],MATCH(INDEX(OfficeVariances[],ROW()-ROW(OfficeVariances[[#Headers],[Mag]]),1),INDEX(OfficePlan[],,1),0),MATCH(OfficeVariances[[#Headers],[Mag]],OfficePlan[#Headers],0))-INDEX(OfficeActual[],MATCH(INDEX(OfficeVariances[],ROW()-ROW(OfficeVariances[[#Headers],[Mag]]),1),INDEX(OfficePlan[],,1),0),MATCH(OfficeVariances[[#Headers],[Mag]],OfficeActual[#Headers],0)) -> € 6.00 | H14: =INDEX(OfficePlan[],MATCH(INDEX(OfficeVariances[],ROW()-ROW(OfficeVariances[[#Headers],[Giu]]),1),INDEX(OfficePlan[],,1),0),MATCH(OfficeVariances[[#Headers],[Giu]],OfficePlan[#Headers],0))-INDEX(OfficeActual[],MATCH(INDEX(OfficeVariances[],ROW()-ROW(OfficeVariances[[#Headers],[Giu]]),1),INDEX(OfficePlan[],,1),0),MATCH(OfficeVariances[[#Headers],[Giu]],OfficeActual[#Headers],0)) -> € 4.00 | I14: =INDEX(OfficePlan[],MATCH(INDEX(OfficeVariances[],ROW()-ROW(OfficeVariances[[#Headers],[Lug]]),1),INDEX(OfficePlan[],,1),0),MATCH(OfficeVariances[[#Headers],[Lug]],OfficePlan[#Headers],0))-INDEX(OfficeActual[],MATCH(INDEX(OfficeVariances[],ROW()-ROW(OfficeVariances[[#Headers],[Lug]]),1),INDEX(OfficePlan[],,1),0),MATCH(OfficeVariances[[#Headers],[Lug]],OfficeActual[#Headers],0)) -> € 40.00 | J14: =INDEX(OfficePlan[],MATCH(INDEX(OfficeVariances[],ROW()-ROW(OfficeVariances[[#Headers],[Ago]]),1),INDEX(OfficePlan[],,1),0),MATCH(OfficeVariances[[#Headers],[Ago]],OfficePlan[#Headers],0))-INDEX(OfficeActual[],MATCH(INDEX(OfficeVariances[],ROW()-ROW(OfficeVariances[[#Headers],[Ago]]),1),INDEX(OfficePlan[],,1),0),MATCH(OfficeVariances[[#Headers],[Ago]],OfficeActual[#Headers],0)) -> € 40.00 | K14: =INDEX(OfficePlan[],MATCH(INDEX(OfficeVariances[],ROW()-ROW(OfficeVariances[[#Headers],[Set]]),1),INDEX(OfficePlan[],,1),0),MATCH(OfficeVariances[[#Headers],[Set]],OfficePlan[#Headers],0))-INDEX(OfficeActual[],MATCH(INDEX(OfficeVariances[],ROW()-ROW(OfficeVariances[[#Headers],[Set]]),1),INDEX(OfficePlan[],,1),0),MATCH(OfficeVariances[[#Headers],[Set]],OfficeActual[#Headers],0)) -> € 40.00 | L14: =INDEX(OfficePlan[],MATCH(INDEX(OfficeVariances[],ROW()-ROW(OfficeVariances[[#Headers],[Ott]]),1),INDEX(OfficePlan[],,1),0),MATCH(OfficeVariances[[#Headers],[Ott]],OfficePlan[#Headers],0))-INDEX(OfficeActual[],MATCH(INDEX(OfficeVariances[],ROW()-ROW(OfficeVariances[[#Headers],[Ott]]),1),INDEX(OfficePlan[],,1),0),MATCH(OfficeVariances[[#Headers],[Ott]],OfficeActual[#Headers],0)) -> € 40.00 | M14: =INDEX(OfficePlan[],MATCH(INDEX(OfficeVariances[],ROW()-ROW(OfficeVariances[[#Headers],[Nov]]),1),INDEX(OfficePlan[],,1),0),MATCH(OfficeVariances[[#Headers],[Nov]],OfficePlan[#Headers],0))-INDEX(OfficeActual[],MATCH(INDEX(OfficeVariances[],ROW()-ROW(OfficeVariances[[#Headers],[Nov]]),1),INDEX(OfficePlan[],,1),0),MATCH(OfficeVariances[[#Headers],[Nov]],OfficeActual[#Headers],0)) -> € 40.00 | N14: =INDEX(OfficePlan[],MATCH(INDEX(OfficeVariances[],ROW()-ROW(OfficeVariances[[#Headers],[Dic]]),1),INDEX(OfficePlan[],,1),0),MATCH(OfficeVariances[[#Headers],[Dic]],OfficePlan[#Headers],0))-INDEX(OfficeActual[],MATCH(INDEX(OfficeVariances[],ROW()-ROW(OfficeVariances[[#Headers],[Dic]]),1),INDEX(OfficePlan[],,1),0),MATCH(OfficeVariances[[#Headers],[Dic]],OfficeActual[#Headers],0)) -> € 40.00 | O14: =SUM(OfficeVariances[[#This Row],[Gen]:[Dic]]) -> € 272.00
B15: Telefono | C15: =INDEX(OfficePlan[],MATCH(INDEX(OfficeVariances[],ROW()-ROW(OfficeVariances[[#Headers],[Gen]]),1),INDEX(OfficePlan[],,1),0),MATCH(OfficeVariances[[#Headers],[Gen]],OfficePlan[#Headers],0))-INDEX(OfficeActual[],MATCH(INDEX(OfficeVariances[],ROW()-ROW(OfficeVariances[[#Headers],[Gen]]),1),INDEX(OfficePlan[],,1),0),MATCH(OfficeVariances[[#Headers],[Gen]],OfficeActual[#Headers],0)) -> € 26.00 | D15: =INDEX(OfficePlan[],MATCH(INDEX(OfficeVariances[],ROW()-ROW(OfficeVariances[[#Headers],[Feb]]),1),INDEX(OfficePlan[],,1),0),MATCH(OfficeVariances[[#Headers],[Feb]],OfficePlan[#Headers],0))-INDEX(OfficeActual[],MATCH(INDEX(OfficeVariances[],ROW()-ROW(OfficeVariances[[#Headers],[Feb]]),1),INDEX(OfficePlan[],,1),0),MATCH(OfficeVariances[[#Headers],[Feb]],OfficeActual[#Headers],0)) -> € 15.00 | E15: =INDEX(OfficePlan[],MATCH(INDEX(OfficeVariances[],ROW()-ROW(OfficeVariances[[#Headers],[Mar]]),1),INDEX(OfficePlan[],,1),0),MATCH(OfficeVariances[[#Headers],[Mar]],OfficePlan[#Headers],0))-INDEX(OfficeActual[],MATCH(INDEX(OfficeVariances[],ROW()-ROW(OfficeVariances[[#Headers],[Mar]]),1),INDEX(OfficePlan[],,1),0),MATCH(OfficeVariances[[#Headers],[Mar]],OfficeActual[#Headers],0)) -> -€ 15.00 | F15: =INDEX(OfficePlan[],MATCH(INDEX(OfficeVariances[],ROW()-ROW(OfficeVariances[[#Headers],[Apr]]),1),INDEX(OfficePlan[],,1),0),MATCH(OfficeVariances[[#Headers],[Apr]],OfficePlan[#Headers],0))-INDEX(OfficeActual[],MATCH(INDEX(OfficeVariances[],ROW()-ROW(OfficeVariances[[#Headers],[Apr]]),1),INDEX(OfficePlan[],,1),0),MATCH(OfficeVariances[[#Headers],[Apr]],OfficeActual[#Headers],0)) -> € 5.00 | G15: =INDEX(OfficePlan[],MATCH(INDEX(OfficeVariances[],ROW()-ROW(OfficeVariances[[#Headers],[Mag]]),1),INDEX(OfficePlan[],,1),0),MATCH(OfficeVariances[[#Headers],[Mag]],OfficePlan[#Headers],0))-INDEX(OfficeActual[],MATCH(INDEX(OfficeVariances[],ROW()-ROW(OfficeVariances[[#Headers],[Mag]]),1),INDEX(OfficePlan[],,1),0),MATCH(OfficeVariances[[#Headers],[Mag]],OfficeActual[#Headers],0)) -> € 5.00 | H15: =INDEX(OfficePlan[],MATCH(INDEX(OfficeVariances[],ROW()-ROW(OfficeVariances[[#Headers],[Giu]]),1),INDEX(OfficePlan[],,1),0),MATCH(OfficeVariances[[#Headers],[Giu]],OfficePlan[#Headers],0))-INDEX(OfficeActual[],MATCH(INDEX(OfficeVariances[],ROW()-ROW(OfficeVariances[[#Headers],[Giu]]),1),INDEX(OfficePlan[],,1),0),MATCH(OfficeVariances[[#Headers],[Giu]],OfficeActual[#Headers],0)) -> € 30.00 | I15: =INDEX(OfficePlan[],MATCH(INDEX(OfficeVariances[],ROW()-ROW(OfficeVariances[[#Headers],[Lug]]),1),INDEX(OfficePlan[],,1),0),MATCH(OfficeVariances[[#Headers],[Lug]],OfficePlan[#Headers],0))-INDEX(OfficeActual[],MATCH(INDEX(OfficeVariances[],ROW()-ROW(OfficeVariances[[#Headers],[Lug]]),1),INDEX(OfficePlan[],,1),0),MATCH(OfficeVariances[[#Headers],[Lug]],OfficeActual[#Headers],0)) -> € 250.00 | J15: =INDEX(OfficePlan[],MATCH(INDEX(OfficeVariances[],ROW()-ROW(OfficeVariances[[#Headers],[Ago]]),1),INDEX(OfficePlan[],,1),0),MATCH(OfficeVariances[[#Headers],[Ago]],OfficePlan[#Headers],0))-INDEX(OfficeActual[],MATCH(INDEX(OfficeVariances[],ROW()-ROW(OfficeVariances[[#Headers],[Ago]]),1),INDEX(OfficePlan[],,1),0),MATCH(OfficeVariances[[#Headers],[Ago]],OfficeActual[#Headers],0)) -> € 250.00 | K15: =INDEX(OfficePlan[],MATCH(INDEX(OfficeVariances[],ROW()-ROW(OfficeVariances[[#Headers],[Set]]),1),INDEX(OfficePlan[],,1),0),MATCH(OfficeVariances[[#Headers],[Set]],OfficePlan[#Headers],0))-INDEX(OfficeActual[],MATCH(INDEX(OfficeVariances[],ROW()-ROW(OfficeVariances[[#Headers],[Set]]),1),INDEX(OfficePlan[],,1),0),MATCH(OfficeVariances[[#Headers],[Set]],OfficeActual[#Headers],0)) -> € 250.00 | L15: =INDEX(OfficePlan[],MATCH(INDEX(OfficeVariances[],ROW()-ROW(OfficeVariances[[#Headers],[Ott]]),1),INDEX(OfficePlan[],,1),0),MATCH(OfficeVariances[[#Headers],[Ott]],OfficePlan[#Headers],0))-INDEX(OfficeActual[],MATCH(INDEX(OfficeVariances[],ROW()-ROW(OfficeVariances[[#Headers],[Ott]]),1),INDEX(OfficePlan[],,1),0),MATCH(OfficeVariances[[#Headers],[Ott]],OfficeActual[#Headers],0)) -> € 250.00 | M15: =INDEX(OfficePlan[],MATCH(INDEX(OfficeVariances[],ROW()-ROW(OfficeVariances[[#Headers],[Nov]]),1),INDEX(OfficePlan[],,1),0),MATCH(OfficeVariances[[#Headers],[Nov]],OfficePlan[#Headers],0))-INDEX(OfficeActual[],MATCH(INDEX(OfficeVariances[],ROW()-ROW(OfficeVariances[[#Headers],[Nov]]),1),INDEX(OfficePlan[],,1),0),MATCH(OfficeVariances[[#Headers],[Nov]],OfficeActual[#Headers],0)) -> € 250.00 | N15: =INDEX(OfficePlan[],MATCH(INDEX(OfficeVariances[],ROW()-ROW(OfficeVariances[[#Headers],[Dic]]),1),INDEX(OfficePlan[],,1),0),MATCH(OfficeVariances[[#Headers],[Dic]],OfficePlan[#Headers],0))-INDEX(OfficeActual[],MATCH(INDEX(OfficeVariances[],ROW()-ROW(OfficeVariances[[#Headers],[Dic]]),1),INDEX(OfficePlan[],,1),0),MATCH(OfficeVariances[[#Headers],[Dic]],OfficeActual[#Headers],0)) -> € 250.00 | O15: =SUM(OfficeVariances[[#This Row],[Gen]:[Dic]]) -> € 1,566.00
B16: Accesso a Internet | C16: =INDEX(OfficePlan[],MATCH(INDEX(OfficeVariances[],ROW()-ROW(OfficeVariances[[#Headers],[Gen]]),1),INDEX(OfficePlan[],,1),0),MATCH(OfficeVariances[[#Headers],[Gen]],OfficePlan[#Headers],0))-INDEX(OfficeActual[],MATCH(INDEX(OfficeVariances[],ROW()-ROW(OfficeVariances[[#Headers],[Gen]]),1),INDEX(OfficePlan[],,1),0),MATCH(OfficeVariances[[#Headers],[Gen]],OfficeActual[#Headers],0)) -> € 0.00 | D16: =INDEX(OfficePlan[],MATCH(INDEX(OfficeVariances[],ROW()-ROW(OfficeVariances[[#Headers],[Feb]]),1),INDEX(OfficePlan[],,1),0),MATCH(OfficeVariances[[#Headers],[Feb]],OfficePlan[#Headers],0))-INDEX(OfficeActual[],MATCH(INDEX(OfficeVariances[],ROW()-ROW(OfficeVariances[[#Headers],[Feb]]),1),INDEX(OfficePlan[],,1),0),MATCH(OfficeVariances[[#Headers],[Feb]],OfficeActual[#Headers],0)) -> € 0.00 | E16: =INDEX(OfficePlan[],MATCH(INDEX(OfficeVariances[],ROW()-ROW(OfficeVariances[[#Headers],[Mar]]),1),INDEX(OfficePlan[],,1),0),MATCH(OfficeVariances[[#Headers],[Mar]],OfficePlan[#Headers],0))-INDEX(OfficeActual[],MATCH(INDEX(OfficeVariances[],ROW()-ROW(OfficeVariances[[#Headers],[Mar]]),1),INDEX(OfficePlan[],,1),0),MATCH(OfficeVariances[[#Headers],[Mar]],OfficeActual[#Headers],0)) -> € 0.00 | F16: =INDEX(OfficePlan[],MATCH(INDEX(OfficeVariances[],ROW()-ROW(OfficeVariances[[#Headers],[Apr]]),1),INDEX(OfficePlan[],,1),0),MATCH(OfficeVariances[[#Headers],[Apr]],OfficePlan[#Headers],0))-INDEX(OfficeActual[],MATCH(INDEX(OfficeVariances[],ROW()-ROW(OfficeVariances[[#Headers],[Apr]]),1),INDEX(OfficePlan[],,1),0),MATCH(OfficeVariances[[#Headers],[Apr]],OfficeActual[#Headers],0)) -> € 0.00 | G16: =INDEX(OfficePlan[],MATCH(INDEX(OfficeVariances[],ROW()-ROW(OfficeVariances[[#Headers],[Mag]]),1),INDEX(OfficePlan[],,1),0),MATCH(OfficeVariances[[#Headers],[Mag]],OfficePlan[#Headers],0))-INDEX(OfficeActual[],MATCH(INDEX(OfficeVariances[],ROW()-ROW(OfficeVariances[[#Headers],[Mag]]),1),INDEX(OfficePlan[],,1),0),MATCH(OfficeVariances[[#Headers],[Mag]],OfficeActual[#Headers],0)) -> € 0.00 | H16: =INDEX(OfficePlan[],MATCH(INDEX(OfficeVariances[],ROW()-ROW(OfficeVariances[[#Headers],[Giu]]),1),INDEX(OfficePlan[],,1),0),MATCH(OfficeVariances[[#Headers],[Giu]],OfficePlan[#Headers],0))-INDEX(OfficeActual[],MATCH(INDEX(OfficeVariances[],ROW()-ROW(OfficeVariances[[#Headers],[Giu]]),1),INDEX(OfficePlan[],,1),0),MATCH(OfficeVariances[[#Headers],[Giu]],OfficeActual[#Headers],0)) -> € 0.00 | I16: =INDEX(OfficePlan[],MATCH(INDEX(OfficeVariances[],ROW()-ROW(OfficeVariances[[#Headers],[Lug]]),1),INDEX(OfficePlan[],,1),0),MATCH(OfficeVariances[[#Headers],[Lug]],OfficePlan[#Headers],0))-INDEX(OfficeActual[],MATCH(INDEX(OfficeVariances[],ROW()-ROW(OfficeVariances[[#Headers],[Lug]]),1),INDEX(OfficePlan[],,1),0),MATCH(OfficeVariances[[#Headers],[Lug]],OfficeActual[#Headers],0)) -> € 180.00 | J16: =INDEX(OfficePlan[],MATCH(INDEX(OfficeVariances[],ROW()-ROW(OfficeVariances[[#Headers],[Ago]]),1),INDEX(OfficePlan[],,1),0),MATCH(OfficeVariances[[#Headers],[Ago]],OfficePlan[#Headers],0))-INDEX(OfficeActual[],MATCH(INDEX(OfficeVariances[],ROW()-ROW(OfficeVariances[[#Headers],[Ago]]),1),INDEX(OfficePlan[],,1),0),MATCH(OfficeVariances[[#Headers],[Ago]],OfficeActual[#Headers],0)) -> € 180.00 | K16: =INDEX(OfficePlan[],MATCH(INDEX(OfficeVariances[],ROW()-ROW(OfficeVariances[[#Headers],[Set]]),1),INDEX(OfficePlan[],,1),0),MATCH(OfficeVariances[[#Headers],[Set]],OfficePlan[#Headers],0))-INDEX(OfficeActual[],MATCH(INDEX(OfficeVariances[],ROW()-ROW(OfficeVariances[[#Headers],[Set]]),1),INDEX(OfficePlan[],,1),0),MATCH(OfficeVariances[[#Headers],[Set]],OfficeActual[#Headers],0)) -> € 180.00 | L16: =INDEX(OfficePlan[],MATCH(INDEX(OfficeVariances[],ROW()-ROW(OfficeVariances[[#Headers],[Ott]]),1),INDEX(OfficePlan[],,1),0),MATCH(OfficeVariances[[#Headers],[Ott]],OfficePlan[#Headers],0))-INDEX(OfficeActual[],MATCH(INDEX(OfficeVariances[],ROW()-ROW(OfficeVariances[[#Headers],[Ott]]),1),INDEX(OfficePlan[],,1),0),MATCH(OfficeVariances[[#Headers],[Ott]],OfficeActual[#Headers],0)) -> € 180.00 | M16: =INDEX(OfficePlan[],MATCH(INDEX(OfficeVariances[],ROW()-ROW(OfficeVariances[[#Headers],[Nov]]),1),INDEX(OfficePlan[],,1),0),MATCH(OfficeVariances[[#Headers],[Nov]],OfficePlan[#Headers],0))-INDEX(OfficeActual[],MATCH(INDEX(OfficeVariances[],ROW()-ROW(OfficeVariances[[#Headers],[Nov]]),1),INDEX(OfficePlan[],,1),0),MATCH(OfficeVariances[[#Headers],[Nov]],OfficeActual[#Headers],0)) -> € 180.00 | N16: =INDEX(OfficePlan[],MATCH(INDEX(OfficeVariances[],ROW()-ROW(OfficeVariances[[#Headers],[Dic]]),1),INDEX(OfficePlan[],,1),0),MATCH(OfficeVariances[[#Headers],[Dic]],OfficePlan[#Headers],0))-INDEX(OfficeActual[],MATCH(INDEX(OfficeVariances[],ROW()-ROW(OfficeVariances[[#Headers],[Dic]]),1),INDEX(OfficePlan[],,1),0),MATCH(OfficeVariances[[#Headers],[Dic]],OfficeActual[#Headers],0)) -> € 180.00 | O16: =SUM(OfficeVariances[[#This Row],[Gen]:[Dic]]) -> € 1,080.00
B17: Forniture ufficio | C17: =INDEX(OfficePlan[],MATCH(INDEX(OfficeVariances[],ROW()-ROW(OfficeVariances[[#Headers],[Gen]]),1),INDEX(OfficePlan[],,1),0),MATCH(OfficeVariances[[#Headers],[Gen]],OfficePlan[#Headers],0))-INDEX(OfficeActual[],MATCH(INDEX(OfficeVariances[],ROW()-ROW(OfficeVariances[[#Headers],[Gen]]),1),INDEX(OfficePlan[],,1),0),MATCH(OfficeVariances[[#Headers],[Gen]],OfficeActual[#Headers],0)) -> -€ 56.00 | D17: =INDEX(OfficePlan[],MATCH(INDEX(OfficeVariances[],ROW()-ROW(OfficeVariances[[#Headers],[Feb]]),1),INDEX(OfficePlan[],,1),0),MATCH(OfficeVariances[[#Headers],[Feb]],OfficePlan[#Headers],0))-INDEX(OfficeActual[],MATCH(INDEX(OfficeVariances[],ROW()-ROW(OfficeVariances[[#Headers],[Feb]]),1),INDEX(OfficePlan[],,1),0),MATCH(OfficeVariances[[#Headers],[Feb]],OfficeActual[#Headers],0)) -> € 58.00 | E17: =INDEX(OfficePlan[],MATCH(INDEX(OfficeVariances[],ROW()-ROW(OfficeVariances[[#Headers],[Mar]]),1),INDEX(OfficePlan[],,1),0),MATCH(OfficeVariances[[#Headers],[Mar]],OfficePlan[#Headers],0))-INDEX(OfficeActual[],MATCH(INDEX(OfficeVariances[],ROW()-ROW(OfficeVariances[[#Headers],[Mar]]),1),INDEX(OfficePlan[],,1),0),MATCH(OfficeVariances[[#Headers],[Mar]],OfficeActual[#Headers],0)) -> € 40.00 | F17: =INDEX(OfficePlan[],MATCH(INDEX(OfficeVariances[],ROW()-ROW(OfficeVariances[[#Headers],[Apr]]),1),INDEX(OfficePlan[],,1),0),MATCH(OfficeVariances[[#Headers],[Apr]],OfficePlan[#Headers],0))-INDEX(OfficeActual[],MATCH(INDEX(OfficeVariances[],ROW()-ROW(OfficeVariances[[#Headers],[Apr]]),1),INDEX(OfficePlan[],,1),0),MATCH(OfficeVariances[[#Headers],[Apr]],OfficeActual[#Headers],0)) -> -€ 21.00 | G17: =INDEX(OfficePlan[],MATCH(INDEX(OfficeVariances[],ROW()-ROW(OfficeVariances[[#Headers],[Mag]]),1),INDEX(OfficePlan[],,1),0),MATCH(OfficeVariances[[#Headers],[Mag]],OfficePlan[#Headers],0))-INDEX(OfficeActual[],MATCH(INDEX(OfficeVariances[],ROW()-ROW(OfficeVariances[[#Headers],[Mag]]),1),INDEX(OfficePlan[],,1),0),MATCH(OfficeVariances[[#Headers],[Mag]],OfficeActual[#Headers],0)) -> -€ 56.00 | H17: =INDEX(OfficePlan[],MATCH(INDEX(OfficeVariances[],ROW()-ROW(OfficeVariances[[#Headers],[Giu]]),1),INDEX(OfficePlan[],,1),0),MATCH(OfficeVariances[[#Headers],[Giu]],OfficePlan[#Headers],0))-INDEX(OfficeActual[],MATCH(INDEX(OfficeVariances[],ROW()-ROW(OfficeVariances[[#Headers],[Giu]]),1),INDEX(OfficePlan[],,1),0),MATCH(OfficeVariances[[#Headers],[Giu]],OfficeActual[#Headers],0)) -> -€ 40.00 | I17: =INDEX(OfficePlan[],MATCH(INDEX(OfficeVariances[],ROW()-ROW(OfficeVariances[[#Headers],[Lug]]),1),INDEX(OfficePlan[],,1),0),MATCH(OfficeVariances[[#Headers],[Lug]],OfficePlan[#Headers],0))-INDEX(OfficeActual[],MATCH(INDEX(OfficeVariances[],ROW()-ROW(OfficeVariances[[#Headers],[Lug]]),1),INDEX(OfficePlan[],,1),0),MATCH(OfficeVariances[[#Headers],[Lug]],OfficeActual[#Headers],0)) -> € 200.00 | J17: =INDEX(OfficePlan[],MATCH(INDEX(OfficeVariances[],ROW()-ROW(OfficeVariances[[#Headers],[Ago]]),1),INDEX(OfficePlan[],,1),0),MATCH(OfficeVariances[[#Headers],[Ago]],OfficePlan[#Headers],0))-INDEX(OfficeActual[],MATCH(INDEX(OfficeVariances[],ROW()-ROW(OfficeVariances[[#Headers],[Ago]]),1),INDEX(OfficePlan[],,1),0),MATCH(OfficeVariances[[#Headers],[Ago]],OfficeActual[#Headers],0)) -> € 200.00 | K17: =INDEX(OfficePlan[],MATCH(INDEX(OfficeVariances[],ROW()-ROW(OfficeVariances[[#Headers],[Set]]),1),INDEX(OfficePlan[],,1),0),MATCH(OfficeVariances[[#Headers],[Set]],OfficePlan[#Headers],0))-INDEX(OfficeActual[],MATCH(INDEX(OfficeVariances[],ROW()-ROW(OfficeVariances[[#Headers],[Set]]),1),INDEX(OfficePlan[],,1),0),MATCH(OfficeVariances[[#Headers],[Set]],OfficeActual[#Headers],0)) -> € 200.00 | L17: =INDEX(OfficePlan[],MATCH(INDEX(OfficeVariances[],ROW()-ROW(OfficeVariances[[#Headers],[Ott]]),1),INDEX(OfficePlan[],,1),0),MATCH(OfficeVariances[[#Headers],[Ott]],OfficePlan[#Headers],0))-INDEX(OfficeActual[],MATCH(INDEX(OfficeVariances[],ROW()-ROW(OfficeVariances[[#Headers],[Ott]]),1),INDEX(OfficePlan[],,1),0),MATCH(OfficeVariances[[#Headers],[Ott]],OfficeActual[#Headers],0)) -> € 200.00 | M17: =INDEX(OfficePlan[],MATCH(INDEX(OfficeVariances[],ROW()-ROW(OfficeVariances[[#Headers],[Nov]]),1),INDEX(OfficePlan[],,1),0),MATCH(OfficeVariances[[#Headers],[Nov]],OfficePlan[#Headers],0))-INDEX(OfficeActual[],MATCH(INDEX(OfficeVariances[],ROW()-ROW(OfficeVariances[[#Headers],[Nov]]),1),INDEX(OfficePlan[],,1),0),MATCH(OfficeVariances[[#Headers],[Nov]],OfficeActual[#Headers],0)) -> € 200.00 | N17: =INDEX(OfficePlan[],MATCH(INDEX(OfficeVariances[],ROW()-ROW(OfficeVariances[[#Headers],[Dic]]),1),INDEX(OfficePlan[],,1),0),MATCH(OfficeVariances[[#Headers],[Dic]],OfficePlan[#Headers],0))-INDEX(OfficeActual[],MATCH(INDEX(OfficeVariances[],ROW()-ROW(OfficeVariances[[#Headers],[Dic]]),1),INDEX(OfficePlan[],,1),0),MATCH(OfficeVariances[[#Headers],[Dic]],OfficeActual[#Headers],0)) -> € 200.00 | O17: =SUM(OfficeVariances[[#This Row],[Gen]:[Dic]]) -> € 1,125.00
B18: Sicurezza | C18: =INDEX(OfficePlan[],MATCH(INDEX(OfficeVariances[],ROW()-ROW(OfficeVariances[[#Headers],[Gen]]),1),INDEX(OfficePlan[],,1),0),MATCH(OfficeVariances[[#Headers],[Gen]],OfficePlan[#Headers],0))-INDEX(OfficeActual[],MATCH(INDEX(OfficeVariances[],ROW()-ROW(OfficeVariances[[#Headers],[Gen]]),1),INDEX(OfficePlan[],,1),0),MATCH(OfficeVariances[[#Headers],[Gen]],OfficeActual[#Headers],0)) -> € 0.00 | D18: =INDEX(OfficePlan[],MATCH(INDEX(OfficeVariances[],ROW()-ROW(OfficeVariances[[#Headers],[Feb]]),1),INDEX(OfficePlan[],,1),0),MATCH(OfficeVariances[[#Headers],[Feb]],OfficePlan[#Headers],0))-INDEX(OfficeActual[],MATCH(INDEX(OfficeVariances[],ROW()-ROW(OfficeVariances[[#Headers],[Feb]]),1),INDEX(OfficePlan[],,1),0),MATCH(OfficeVariances[[#Headers],[Feb]],OfficeActual[#Headers],0)) -> € 0.00 | E18: =INDEX(OfficePlan[],MATCH(INDEX(OfficeVariances[],ROW()-ROW(OfficeVariances[[#Headers],[Mar]]),1),INDEX(OfficePlan[],,1),0),MATCH(OfficeVariances[[#Headers],[Mar]],OfficePlan[#Headers],0))-INDEX(OfficeActual[],MATCH(INDEX(OfficeVariances[],ROW()-ROW(OfficeVariances[[#Headers],[Mar]]),1),INDEX(OfficePlan[],,1),0),MATCH(OfficeVariances[[#Headers],[Mar]],OfficeActual[#Headers],0)) -> € 0.00 | F18: =INDEX(OfficePlan[],MATCH(INDEX(OfficeVariances[],ROW()-ROW(OfficeVariances[[#Headers],[Apr]]),1),INDEX(OfficePlan[],,1),0),MATCH(OfficeVariances[[#Headers],[Apr]],OfficePlan[#Headers],0))-INDEX(OfficeActual[],MATCH(INDEX(OfficeVariances[],ROW()-ROW(OfficeVariances[[#Headers],[Apr]]),1),INDEX(OfficePlan[],,1),0),MATCH(OfficeVariances[[#Headers],[Apr]],OfficeActual[#Headers],0)) -> € 0.00 | G18: =INDEX(OfficePlan[],MATCH(INDEX(OfficeVariances[],ROW()-ROW(OfficeVariances[[#Headers],[Mag]]),1),INDEX(OfficePlan[],,1),0),MATCH(OfficeVariances[[#Headers],[Mag]],OfficePlan[#Headers],0))-INDEX(OfficeActual[],MATCH(INDEX(OfficeVariances[],ROW()-ROW(OfficeVariances[[#Headers],[Mag]]),1),INDEX(OfficePlan[],,1),0),MATCH(OfficeVariances[[#Headers],[Mag]],OfficeActual[#Headers],0)) -> € 0.00 | H18: =INDEX(OfficePlan[],MATCH(INDEX(OfficeVariances[],ROW()-ROW(OfficeVariances[[#Headers],[Giu]]),1),INDEX(OfficePlan[],,1),0),MATCH(OfficeVariances[[#Headers],[Giu]],OfficePlan[#Headers],0))-INDEX(OfficeActual[],MATCH(INDEX(OfficeVariances[],ROW()-ROW(OfficeVariances[[#Headers],[Giu]]),1),INDEX(OfficePlan[],,1),0),MATCH(OfficeVariances[[#Headers],[Giu]],OfficeActual[#Headers],0)) -> € 0.00 | I18: =INDEX(OfficePlan[],MATCH(INDEX(OfficeVariances[],ROW()-ROW(OfficeVariances[[#Headers],[Lug]]),1),INDEX(OfficePlan[],,1),0),MATCH(OfficeVariances[[#Headers],[Lug]],OfficePlan[#Headers],0))-INDEX(OfficeActual[],MATCH(INDEX(OfficeVariances[],ROW()-ROW(OfficeVariances[[#Headers],[Lug]]),1),INDEX(OfficePlan[],,1),0),MATCH(OfficeVariances[[#Headers],[Lug]],OfficeActual[#Headers],0)) -> € 600.00 | J18: =INDEX(OfficePlan[],MATCH(INDEX(OfficeVariances[],ROW()-ROW(OfficeVariances[[#Headers],[Ago]]),1),INDEX(OfficePlan[],,1),0),MATCH(OfficeVariances[[#Headers],[Ago]],OfficePlan[#Headers],0))-INDEX(OfficeActual[],MATCH(INDEX(OfficeVariances[],ROW()-ROW(OfficeVariances[[#Headers],[Ago]]),1),INDEX(OfficePlan[],,1),0),MATCH(OfficeVariances[[#Headers],[Ago]],OfficeActual[#Headers],0)) -> € 600.00 | K18: =INDEX(OfficePlan[],MATCH(INDEX(OfficeVariances[],ROW()-ROW(OfficeVariances[[#Headers],[Set]]),1),INDEX(OfficePlan[],,1),0),MATCH(OfficeVariances[[#Headers],[Set]],OfficePlan[#Headers],0))-INDEX(OfficeActual[],MATCH(INDEX(OfficeVariances[],ROW()-ROW(OfficeVariances[[#Headers],[Set]]),1),INDEX(OfficePlan[],,1),0),MATCH(OfficeVariances[[#Headers],[Set]],OfficeActual[#Headers],0)) -> € 600.00 | L18: =INDEX(OfficePlan[],MATCH(INDEX(OfficeVariances[],ROW()-ROW(OfficeVariances[[#Headers],[Ott]]),1),INDEX(OfficePlan[],,1),0),MATCH(OfficeVariances[[#Headers],[Ott]],OfficePlan[#Headers],0))-INDEX(OfficeActual[],MATCH(INDEX(OfficeVariances[],ROW()-ROW(OfficeVariances[[#Headers],[Ott]]),1),INDEX(OfficePlan[],,1),0),MATCH(OfficeVariances[[#Headers],[Ott]],OfficeActual[#Headers],0)) -> € 600.00 | M18: =INDEX(OfficePlan[],MATCH(INDEX(OfficeVariances[],ROW()-ROW(OfficeVariances[[#Headers],[Nov]]),1),INDEX(OfficePlan[],,1),0),MATCH(OfficeVariances[[#Headers],[Nov]],OfficePlan[#Headers],0))-INDEX(OfficeActual[],MATCH(INDEX(OfficeVariances[],ROW()-ROW(OfficeVariances[[#Headers],[Nov]]),1),INDEX(OfficePlan[],,1),0),MATCH(OfficeVariances[[#Headers],[Nov]],OfficeActual[#Headers],0)) -> € 600.00 | N18: =INDEX(OfficePlan[],MATCH(INDEX(OfficeVariances[],ROW()-ROW(OfficeVariances[[#Headers],[Dic]]),1),INDEX(OfficePlan[],,1),0),MATCH(OfficeVariances[[#Headers],[Dic]],OfficePlan[#Headers],0))-INDEX(OfficeActual[],MATCH(INDEX(OfficeVariances[],ROW()-ROW(OfficeVariances[[#Headers],[Dic]]),1),INDEX(OfficePlan[],,1),0),MATCH(OfficeVariances[[#Headers],[Dic]],OfficeActual[#Headers],0)) -> € 600.00 | O18: =SUM(OfficeVariances[[#This Row],[Gen]:[Dic]]) -> € 3,600.00
B19: Subtotale | C19: =SUBTOTAL(109,OfficeVariances[Gen]) -> -€ 17.00 | D19: =SUBTOTAL(109,OfficeVariances[Feb]) -> € 72.00 | E19: =SUBTOTAL(109,OfficeVariances[Mar]) -> € 78.00 | F19: =SUBTOTAL(109,OfficeVariances[Apr]) -> -€ 141.00 | G19: =SUBTOTAL(109,OfficeVariances[Mag]) -> -€ 38.00 | H19: =SUBTOTAL(109,OfficeVariances[Giu]) -> € 16.00 | I19: =SUBTOTAL(109,OfficeVariances[Lug]) -> € 11,470.00 | J19: =SUBTOTAL(109,OfficeVariances[Ago]) -> € 11,470.00 | K19: =SUBTOTAL(109,OfficeVariances[Set]) -> € 11,470.00 | L19: =SUBTOTAL(109,OfficeVariances[Ott]) -> € 11,470.00 | M19: =SUBTOTAL(109,OfficeVariances[Nov]) -> € 11,770.00 | N19: =SUBTOTAL(109,OfficeVariances[Dic]) -> € 11,770.00 | O19: =SUBTOTAL(109,OfficeVariances[ANNO]) -> € 69,390.00
B21: COSTI DI MARKETING | C21: Gen | D21: Feb | E21: Mar | F21: Apr | G21: Mag | H21: Giu | I21: Lug | J21: Ago | K21: Set | L21: Ott | M21: Nov | N21: Dic | O21: ANNO
B22: Hosting di siti Web | C22: =INDEX(MarketingPlan[],MATCH(INDEX(MarketingVariances[],ROW()-ROW(MarketingVariances[[#Headers],[Gen]]),1),INDEX(MarketingPlan[],,1),0),MATCH(MarketingVariances[[#Headers],[Gen]],MarketingPlan[#Headers],0))-INDEX(MarketingActual[],MATCH(INDEX(MarketingVariances[],ROW()-ROW(MarketingVariances[[#Headers],[Gen]]),1),INDEX(MarketingPlan[],,1),0),MATCH(MarketingVariances[[#Headers],[Gen]],MarketingActual[#Headers],0)) -> € 0.00 | D22: =INDEX(MarketingPlan[],MATCH(INDEX(MarketingVariances[],ROW()-ROW(MarketingVariances[[#Headers],[Feb]]),1),INDEX(MarketingPlan[],,1),0),MATCH(MarketingVariances[[#Headers],[Feb]],MarketingPlan[#Headers],0))-INDEX(MarketingActual[],MATCH(INDEX(MarketingVariances[],ROW()-ROW(MarketingVariances[[#Headers],[Feb]]),1),INDEX(MarketingPlan[],,1),0),MATCH(MarketingVariances[[#Headers],[Feb]],MarketingActual[#Headers],0)) -> € 0.00 | E22: =INDEX(MarketingPlan[],MATCH(INDEX(MarketingVariances[],ROW()-ROW(MarketingVariances[[#Headers],[Mar]]),1),INDEX(MarketingPlan[],,1),0),MATCH(MarketingVariances[[#Headers],[Mar]],MarketingPlan[#Headers],0))-INDEX(MarketingActual[],MATCH(INDEX(MarketingVariances[],ROW()-ROW(MarketingVariances[[#Headers],[Mar]]),1),INDEX(MarketingPlan[],,1),0),MATCH(MarketingVariances[[#Headers],[Mar]],MarketingActual[#Headers],0)) -> € 0.00 | F22: =INDEX(MarketingPlan[],MATCH(INDEX(MarketingVariances[],ROW()-ROW(MarketingVariances[[#Headers],[Apr]]),1),INDEX(MarketingPlan[],,1),0),MATCH(MarketingVariances[[#Headers],[Apr]],MarketingPlan[#Headers],0))-INDEX(MarketingActual[],MATCH(INDEX(MarketingVariances[],ROW()-ROW(MarketingVariances[[#Headers],[Apr]]),1),INDEX(MarketingPlan[],,1),0),MATCH(MarketingVariances[[#Headers],[Apr]],MarketingActual[#Headers],0)) -> € 0.00 | G22: =INDEX(MarketingPlan[],MATCH(INDEX(MarketingVariances[],ROW()-ROW(MarketingVariances[[#Headers],[Mag]]),1),INDEX(MarketingPlan[],,1),0),MATCH(MarketingVariances[[#Headers],[Mag]],MarketingPlan[#Headers],0))-INDEX(MarketingActual[],MATCH(INDEX(MarketingVariances[],ROW()-ROW(MarketingVariances[[#Headers],[Mag]]),1),INDEX(MarketingPlan[],,1),0),MATCH(MarketingVariances[[#Headers],[Mag]],MarketingActual[#Headers],0)) -> € 0.00 | H22: =INDEX(MarketingPlan[],MATCH(INDEX(MarketingVariances[],ROW()-ROW(MarketingVariances[[#Headers],[Giu]]),1),INDEX(MarketingPlan[],,1),0),MATCH(MarketingVariances[[#Headers],[Giu]],MarketingPlan[#Headers],0))-INDEX(MarketingActual[],MATCH(INDEX(MarketingVariances[],ROW()-ROW(MarketingVariances[[#Headers],[Giu]]),1),INDEX(MarketingPlan[],,1),0),MATCH(MarketingVariances[[#Headers],[Giu]],MarketingActual[#Headers],0)) -> € 0.00 | I22: =INDEX(MarketingPlan[],MATCH(INDEX(MarketingVariances[],ROW()-ROW(MarketingVariances[[#Headers],[Lug]]),1),INDEX(MarketingPlan[],,1),0),MATCH(MarketingVariances[[#Headers],[Lug]],MarketingPlan[#Headers],0))-INDEX(MarketingActual[],MATCH(INDEX(MarketingVariances[],ROW()-ROW(MarketingVariances[[#Headers],[Lug]]),1),INDEX(MarketingPlan[],,1),0),MATCH(MarketingVariances[[#Headers],[Lug]],MarketingActual[#Headers],0)) -> € 500.00 | J22: =INDEX(MarketingPlan[],MATCH(INDEX(MarketingVariances[],ROW()-ROW(MarketingVariances[[#Headers],[Ago]]),1),INDEX(MarketingPlan[],,1),0),MATCH(MarketingVariances[[#Headers],[Ago]],MarketingPlan[#Headers],0))-INDEX(MarketingActual[],MATCH(INDEX(MarketingVariances[],ROW()-ROW(MarketingVariances[[#Headers],[Ago]]),1),INDEX(MarketingPlan[],,1),0),MATCH(MarketingVariances[[#Headers],[Ago]],MarketingActual[#Headers],0)) -> € 500.00 | K22: =INDEX(MarketingPlan[],MATCH(INDEX(MarketingVariances[],ROW()-ROW(MarketingVariances[[#Headers],[Set]]),1),INDEX(MarketingPlan[],,1),0),MATCH(MarketingVariances[[#Headers],[Set]],MarketingPlan[#Headers],0))-INDEX(MarketingActual[],MATCH(INDEX(MarketingVariances[],ROW()-ROW(MarketingVariances[[#Headers],[Set]]),1),INDEX(MarketingPlan[],,1),0),MATCH(MarketingVariances[[#Headers],[Set]],MarketingActual[#Headers],0)) -> € 500.00 | L22: =INDEX(MarketingPlan[],MATCH(INDEX(MarketingVariances[],ROW()-ROW(MarketingVariances[[#Headers],[Ott]]),1),INDEX(MarketingPlan[],,1),0),MATCH(MarketingVariances[[#Headers],[Ott]],MarketingPlan[#Headers],0))-INDEX(MarketingActual[],MATCH(INDEX(MarketingVariances[],ROW()-ROW(MarketingVariances[[#Headers],[Ott]]),1),INDEX(MarketingPlan[],,1),0),MATCH(MarketingVariances[[#Headers],[Ott]],MarketingActual[#Headers],0)) -> € 500.00 | M22: =INDEX(MarketingPlan[],MATCH(INDEX(MarketingVariances[],ROW()-ROW(MarketingVariances[[#Headers],[Nov]]),1),INDEX(MarketingPlan[],,1),0),MATCH(MarketingVariances[[#Headers],[Nov]],MarketingPlan[#Headers],0))-INDEX(MarketingActual[],MATCH(INDEX(MarketingVariances[],ROW()-ROW(MarketingVariances[[#Headers],[Nov]]),1),INDEX(MarketingPlan[],,1),0),MATCH(MarketingVariances[[#Headers],[Nov]],MarketingActual[#Headers],0)) -> € 500.00 | N22: =INDEX(MarketingPlan[],MATCH(INDEX(MarketingVariances[],ROW()-ROW(MarketingVariances[[#Headers],[Dic]]),1),INDEX(MarketingPlan[],,1),0),MATCH(MarketingVariances[[#Headers],[Dic]],MarketingPlan[#Headers],0))-INDEX(MarketingActual[],MATCH(INDEX(MarketingVariances[],ROW()-ROW(MarketingVariances[[#Headers],[Dic]]),1),INDEX(MarketingPlan[],,1),0),MATCH(MarketingVariances[[#Headers],[Dic]],MarketingActual[#Headers],0)) -> € 500.00 | O22: =SUM(MarketingVariances[[#This Row],[Gen]:[Dic]]) -> € 3,000.00
B23: Aggiornamenti del sito Web | C23: =INDEX(MarketingPlan[],MATCH(INDEX(MarketingVariances[],ROW()-ROW(MarketingVariances[[#Headers],[Gen]]),1),INDEX(MarketingPlan[],,1),0),MATCH(MarketingVariances[[#Headers],[Gen]],MarketingPlan[#Headers],0))-INDEX(MarketingActual[],MATCH(INDEX(MarketingVariances[],ROW()-ROW(MarketingVariances[[#Headers],[Gen]]),1),INDEX(MarketingPlan[],,1),0),MATCH(MarketingVariances[[#Headers],[Gen]],MarketingActual[#Headers],0)) -> € 0.00 | D23: =INDEX(MarketingPlan[],MATCH(INDEX(MarketingVariances[],ROW()-ROW(MarketingVariances[[#Headers],[Feb]]),1),INDEX(MarketingPlan[],,1),0),MATCH(MarketingVariances[[#Headers],[Feb]],MarketingPlan[#Headers],0))-INDEX(MarketingActual[],MATCH(INDEX(MarketingVariances[],ROW()-ROW(MarketingVariances[[#Headers],[Feb]]),1),INDEX(MarketingPlan[],,1),0),MATCH(MarketingVariances[[#Headers],[Feb]],MarketingActual[#Headers],0)) -> € 0.00 | E23: =INDEX(MarketingPlan[],MATCH(INDEX(MarketingVariances[],ROW()-ROW(MarketingVariances[[#Headers],[Mar]]),1),INDEX(MarketingPlan[],,1),0),MATCH(MarketingVariances[[#Headers],[Mar]],MarketingPlan[#Headers],0))-INDEX(MarketingActual[],MATCH(INDEX(MarketingVariances[],ROW()-ROW(MarketingVariances[[#Headers],[Mar]]),1),INDEX(MarketingPlan[],,1),0),MATCH(MarketingVariances[[#Headers],[Mar]],MarketingActual[#Headers],0)) -> € 0.00 | F23: =INDEX(MarketingPlan[],MATCH(INDEX(MarketingVariances[],ROW()-ROW(MarketingVariances[[#Headers],[Apr]]),1),INDEX(MarketingPlan[],,1),0),MATCH(MarketingVariances[[#Headers],[Apr]],MarketingPlan[#Headers],0))-INDEX(MarketingActual[],MATCH(INDEX(MarketingVariances[],ROW()-ROW(MarketingVariances[[#Headers],[Apr]]),1),INDEX(MarketingPlan[],,1),0),MATCH(MarketingVariances[[#Headers],[Apr]],MarketingActual[#Headers],0)) -> € 0.00 | G23: =INDEX(MarketingPlan[],MATCH(INDEX(MarketingVariances[],ROW()-ROW(MarketingVariances[[#Headers],[Mag]]),1),INDEX(MarketingPlan[],,1),0),MATCH(MarketingVariances[[#Headers],[Mag]],MarketingPlan[#Headers],0))-INDEX(MarketingActual[],MATCH(INDEX(MarketingVariances[],ROW()-ROW(MarketingVariances[[#Headers],[Mag]]),1),INDEX(MarketingPlan[],,1),0),MATCH(MarketingVariances[[#Headers],[Mag]],MarketingActual[#Headers],0)) -> € 0.00 | H23: =INDEX(MarketingPlan[],MATCH(INDEX(MarketingVariances[],ROW()-ROW(MarketingVariances[[#Headers],[Giu]]),1),INDEX(MarketingPlan[],,1),0),MATCH(MarketingVariances[[#Headers],[Giu]],MarketingPlan[#Headers],0))-INDEX(MarketingActual[],MATCH(INDEX(MarketingVariances[],ROW()-ROW(MarketingVariances[[#Headers],[Giu]]),1),INDEX(MarketingPlan[],,1),0),MATCH(MarketingVariances[[#Headers],[Giu]],MarketingActual[#Headers],0)) -> -€ 500.00 | I23: =INDEX(MarketingPlan[],MATCH(INDEX(MarketingVariances[],ROW()-ROW(MarketingVariances[[#Headers],[Lug]]),1),INDEX(MarketingPlan[],,1),0),MATCH(MarketingVariances[[#Headers],[Lug]],MarketingPlan[#Headers],0))-INDEX(MarketingActual[],MATCH(INDEX(MarketingVariances[],ROW()-ROW(MarketingVariances[[#Headers],[Lug]]),1),INDEX(MarketingPlan[],,1),0),MATCH(MarketingVariances[[#Headers],[Lug]],MarketingActual[#Headers],0)) -> € 200.00 | J23: =INDEX(MarketingPlan[],MATCH(INDEX(MarketingVariances[],ROW()-ROW(MarketingVariances[[#Headers],[Ago]]),1),INDEX(MarketingPlan[],,1),0),MATCH(MarketingVariances[[#Headers],[Ago]],MarketingPlan[#Headers],0))-INDEX(MarketingActual[],MATCH(INDEX(MarketingVariances[],ROW()-ROW(MarketingVariances[[#Headers],[Ago]]),1),INDEX(MarketingPlan[],,1),0),MATCH(MarketingVariances[[#Headers],[Ago]],MarketingActual[#Headers],0)) -> € 200.00 | K23: =INDEX(MarketingPlan[],MATCH(INDEX(MarketingVariances[],ROW()-ROW(MarketingVariances[[#Headers],[Set]]),1),INDEX(MarketingPlan[],,1),0),MATCH(MarketingVariances[[#Headers],[Set]],MarketingPlan[#Headers],0))-INDEX(MarketingActual[],MATCH(INDEX(MarketingVariances[],ROW()-ROW(MarketingVariances[[#Headers],[Set]]),1),INDEX(MarketingPlan[],,1),0),MATCH(MarketingVariances[[#Headers],[Set]],MarketingActual[#Headers],0)) -> € 200.00 | L23: =INDEX(MarketingPlan[],MATCH(INDEX(MarketingVariances[],ROW()-ROW(MarketingVariances[[#Headers],[Ott]]),1),INDEX(MarketingPlan[],,1),0),MATCH(MarketingVariances[[#Headers],[Ott]],MarketingPlan[#Headers],0))-INDEX(MarketingActual[],MATCH(INDEX(MarketingVariances[],ROW()-ROW(MarketingVariances[[#Headers],[Ott]]),1),INDEX(MarketingPlan[],,1),0),MATCH(MarketingVariances[[#Headers],[Ott]],MarketingActual[#Headers],0)) -> € 200.00 | M23: =INDEX(MarketingPlan[],MATCH(INDEX(MarketingVariances[],ROW()-ROW(MarketingVariances[[#Headers],[Nov]]),1),INDEX(MarketingPlan[],,1),0),MATCH(MarketingVariances[[#Headers],[Nov]],MarketingPlan[#Headers],0))-INDEX(MarketingActual[],MATCH(INDEX(MarketingVariances[],ROW()-ROW(MarketingVariances[[#Headers],[Nov]]),1),INDEX(MarketingPlan[],,1),0),MATCH(MarketingVariances[[#Headers],[Nov]],MarketingActual[#Headers],0)) -> € 200.00 | N23: =INDEX(MarketingPlan[],MATCH(INDEX(MarketingVariances[],ROW()-ROW(MarketingVariances[[#Headers],[Dic]]),1),INDEX(MarketingPlan[],,1),0),MATCH(MarketingVariances[[#Headers],[Dic]],MarketingPlan[#Headers],0))-INDEX(MarketingActual[],MATCH(INDEX(MarketingVariances[],ROW()-ROW(MarketingVariances[[#Headers],[Dic]]),1),INDEX(MarketingPlan[],,1),0),MATCH(MarketingVariances[[#Headers],[Dic]],MarketingActual[#Headers],0)) -> € 1,000.00 | O23: =SUM(MarketingVariances[[#This Row],[Gen]:[Dic]]) -> € 1,500.00
B24: Preparazione materiale | C24: =INDEX(MarketingPlan[],MATCH(INDEX(MarketingVariances[],ROW()-ROW(MarketingVariances[[#Headers],[Gen]]),1),INDEX(MarketingPlan[],,1),0),MATCH(MarketingVariances[[#Headers],[Gen]],MarketingPlan[#Headers],0))-INDEX(MarketingActual[],MATCH(INDEX(MarketingVariances[],ROW()-ROW(MarketingVariances[[#Headers],[Gen]]),1),INDEX(MarketingPlan[],,1),0),MATCH(MarketingVariances[[#Headers],[Gen]],MarketingActual[#Headers],0)) -> € 200.00 | D24: =INDEX(MarketingPlan[],MATCH(INDEX(MarketingVariances[],ROW()-ROW(MarketingVariances[[#Headers],[Feb]]),1),INDEX(MarketingPlan[],,1),0),MATCH(MarketingVariances[[#Headers],[Feb]],MarketingPlan[#Headers],0))-INDEX(MarketingActual[],MATCH(INDEX(MarketingVariances[],ROW()-ROW(MarketingVariances[[#Headers],[Feb]]),1),INDEX(MarketingPlan[],,1),0),MATCH(MarketingVariances[[#Headers],[Feb]],MarketingActual[#Headers],0)) -> € 0.00 | E24: =INDEX(MarketingPlan[],MATCH(INDEX(MarketingVariances[],ROW()-ROW(MarketingVariances[[#Headers],[Mar]]),1),INDEX(MarketingPlan[],,1),0),MATCH(MarketingVariances[[#Headers],[Mar]],MarketingPlan[#Headers],0))-INDEX(MarketingActual[],MATCH(INDEX(MarketingVariances[],ROW()-ROW(MarketingVariances[[#Headers],[Mar]]),1),INDEX(MarketingPlan[],,1),0),MATCH(MarketingVariances[[#Headers],[Mar]],MarketingActual[#Headers],0)) -> € 0.00 | F24: =INDEX(MarketingPlan[],MATCH(INDEX(MarketingVariances[],ROW()-ROW(MarketingVariances[[#Headers],[Apr]]),1),INDEX(MarketingPlan[],,1),0),MATCH(MarketingVariances[[#Headers],[Apr]],MarketingPlan[#Headers],0))-INDEX(MarketingActual[],MATCH(INDEX(MarketingVariances[],ROW()-ROW(MarketingVariances[[#Headers],[Apr]]),1),INDEX(MarketingPlan[],,1),0),MATCH(MarketingVariances[[#Headers],[Apr]],MarketingActual[#Headers],0)) -> -€ 500.00 | G24: =INDEX(MarketingPlan[],MATCH(INDEX(MarketingVariances[],ROW()-ROW(MarketingVariances[[#Headers],[Mag]]),1),INDEX(MarketingPlan[],,1),0),MATCH(MarketingVariances[[#Headers],[Mag]],MarketingPlan[#Headers],0))-INDEX(MarketingActual[],MATCH(INDEX(MarketingVariances[],ROW()-ROW(MarketingVariances[[#Headers],[Mag]]),1),INDEX(MarketingPlan[],,1),0),MATCH(MarketingVariances[[#Headers],[Mag]],MarketingActual[#Headers],0)) -> € 0.00 | H24: =INDEX(MarketingPlan[],MATCH(INDEX(MarketingVariances[],ROW()-ROW(MarketingVariances[[#Headers],[Giu]]),1),INDEX(MarketingPlan[],,1),0),MATCH(MarketingVariances[[#Headers],[Giu]],MarketingPlan[#Headers],0))-INDEX(MarketingActual[],MATCH(INDEX(MarketingVariances[],ROW()-ROW(MarketingVariances[[#Headers],[Giu]]),1),INDEX(MarketingPlan[],,1),0),MATCH(MarketingVariances[[#Headers],[Giu]],MarketingActual[#Headers],0)) -> € 0.00 | I24: =INDEX(MarketingPlan[],MATCH(INDEX(MarketingVariances[],ROW()-ROW(MarketingVariances[[#Headers],[Lug]]),1),INDEX(MarketingPlan[],,1),0),MATCH(MarketingVariances[[#Headers],[Lug]],MarketingPlan[#Headers],0))-INDEX(MarketingActual[],MATCH(INDEX(MarketingVariances[],ROW()-ROW(MarketingVariances[[#Headers],[Lug]]),1),INDEX(MarketingPlan[],,1),0),MATCH(MarketingVariances[[#Headers],[Lug]],MarketingActual[#Headers],0)) -> € 5,000.00 | J24: =INDEX(MarketingPlan[],MATCH(INDEX(MarketingVariances[],ROW()-ROW(MarketingVariances[[#Headers],[Ago]]),1),INDEX(MarketingPlan[],,1),0),MATCH(MarketingVariances[[#Headers],[Ago]],MarketingPlan[#Headers],0))-INDEX(MarketingActual[],MATCH(INDEX(MarketingVariances[],ROW()-ROW(MarketingVariances[[#Headers],[Ago]]),1),INDEX(MarketingPlan[],,1),0),MATCH(MarketingVariances[[#Headers],[Ago]],MarketingActual[#Headers],0)) -> € 0.00 | K24: =INDEX(MarketingPlan[],MATCH(INDEX(MarketingVariances[],ROW()-ROW(MarketingVariances[[#Headers],[Set]]),1),INDEX(MarketingPlan[],,1),0),MATCH(MarketingVariances[[#Headers],[Set]],MarketingPlan[#Headers],0))-INDEX(MarketingActual[],MATCH(INDEX(MarketingVariances[],ROW()-ROW(MarketingVariances[[#Headers],[Set]]),1),INDEX(MarketingPlan[],,1),0),MATCH(MarketingVariances[[#Headers],[Set]],MarketingActual[#Headers],0)) -> € 0.00 | L24: =INDEX(MarketingPlan[],MATCH(INDEX(MarketingVariances[],ROW()-ROW(MarketingVariances[[#Headers],[Ott]]),1),INDEX(MarketingPlan[],,1),0),MATCH(MarketingVariances[[#Headers],[Ott]],MarketingPlan[#Headers],0))-INDEX(MarketingActual[],MATCH(INDEX(MarketingVariances[],ROW()-ROW(MarketingVariances[[#Headers],[Ott]]),1),INDEX(MarketingPlan[],,1),0),MATCH(MarketingVariances[[#Headers],[Ott]],MarketingActual[#Headers],0)) -> € 5,000.00 | M24: =INDEX(MarketingPlan[],MATCH(INDEX(MarketingVariances[],ROW()-ROW(MarketingVariances[[#Headers],[Nov]]),1),INDEX(MarketingPlan[],,1),0),MATCH(MarketingVariances[[#Headers],[Nov]],MarketingPlan[#Headers],0))-INDEX(MarketingActual[],MATCH(INDEX(MarketingVariances[],ROW()-ROW(MarketingVariances[[#Headers],[Nov]]),1),INDEX(MarketingPlan[],,1),0),MATCH(MarketingVariances[[#Headers],[Nov]],MarketingActual[#Headers],0)) -> € 0.00 | N24: =INDEX(MarketingPlan[],MATCH(INDEX(MarketingVariances[],ROW()-ROW(MarketingVariances[[#Headers],[Dic]]),1),INDEX(MarketingPlan[],,1),0),MATCH(MarketingVariances[[#Headers],[Dic]],MarketingPlan[#Headers],0))-INDEX(MarketingActual[],MATCH(INDEX(MarketingVariances[],ROW()-ROW(MarketingVariances[[#Headers],[Dic]]),1),INDEX(MarketingPlan[],,1),0),MATCH(MarketingVariances[[#Headers],[Dic]],MarketingActual[#Headers],0)) -> € 0.00 | O24: =SUM(MarketingVariances[[#This Row],[Gen]:[Dic]]) -> € 9,700.00
B25: Stampa materiale | C25: =INDEX(MarketingPlan[],MATCH(INDEX(MarketingVariances[],ROW()-ROW(MarketingVariances[[#Headers],[Gen]]),1),INDEX(MarketingPlan[],,1),0),MATCH(MarketingVariances[[#Headers],[Gen]],MarketingPlan[#Headers],0))-INDEX(MarketingActual[],MATCH(INDEX(MarketingVariances[],ROW()-ROW(MarketingVariances[[#Headers],[Gen]]),1),INDEX(MarketingPlan[],,1),0),MATCH(MarketingVariances[[#Headers],[Gen]],MarketingActual[#Headers],0)) -> € 100.00 | D25: =INDEX(MarketingPlan[],MATCH(INDEX(MarketingVariances[],ROW()-ROW(MarketingVariances[[#Headers],[Feb]]),1),INDEX(MarketingPlan[],,1),0),MATCH(MarketingVariances[[#Headers],[Feb]],MarketingPlan[#Headers],0))-INDEX(MarketingActual[],MATCH(INDEX(MarketingVariances[],ROW()-ROW(MarketingVariances[[#Headers],[Feb]]),1),INDEX(MarketingPlan[],,1),0),MATCH(MarketingVariances[[#Headers],[Feb]],MarketingActual[#Headers],0)) -> -€ 300.00 | E25: =INDEX(MarketingPlan[],MATCH(INDEX(MarketingVariances[],ROW()-ROW(MarketingVariances[[#Headers],[Mar]]),1),INDEX(MarketingPlan[],,1),0),MATCH(MarketingVariances[[#Headers],[Mar]],MarketingPlan[#Headers],0))-INDEX(MarketingActual[],MATCH(INDEX(MarketingVariances[],ROW()-ROW(MarketingVariances[[#Headers],[Mar]]),1),INDEX(MarketingPlan[],,1),0),MATCH(MarketingVariances[[#Headers],[Mar]],MarketingActual[#Headers],0)) -> € 100.00 | F25: =INDEX(MarketingPlan[],MATCH(INDEX(MarketingVariances[],ROW()-ROW(MarketingVariances[[#Headers],[Apr]]),1),INDEX(MarketingPlan[],,1),0),MATCH(MarketingVariances[[#Headers],[Apr]],MarketingPlan[#Headers],0))-INDEX(MarketingActual[],MATCH(INDEX(MarketingVariances[],ROW()-ROW(MarketingVariances[[#Headers],[Apr]]),1),INDEX(MarketingPlan[],,1),0),MATCH(MarketingVariances[[#Headers],[Apr]],MarketingActual[#Headers],0)) -> € 100.00 | G25: =INDEX(MarketingPlan[],MATCH(INDEX(MarketingVariances[],ROW()-ROW(MarketingVariances[[#Headers],[Mag]]),1),INDEX(MarketingPlan[],,1),0),MATCH(MarketingVariances[[#Headers],[Mag]],MarketingPlan[#Headers],0))-INDEX(MarketingActual[],MATCH(INDEX(MarketingVariances[],ROW()-ROW(MarketingVariances[[#Headers],[Mag]]),1),INDEX(MarketingPlan[],,1),0),MATCH(MarketingVariances[[#Headers],[Mag]],MarketingActual[#Headers],0)) -> -€ 400.00 | H25: =INDEX(MarketingPlan[],MATCH(INDEX(MarketingVariances[],ROW()-ROW(MarketingVariances[[#Headers],[Giu]]),1),INDEX(MarketingPlan[],,1),0),MATCH(MarketingVariances[[#Headers],[Giu]],MarketingPlan[#Headers],0))-INDEX(MarketingActual[],MATCH(INDEX(MarketingVariances[],ROW()-ROW(MarketingVariances[[#Headers],[Giu]]),1),INDEX(MarketingPlan[],,1),0),MATCH(MarketingVariances[[#Headers],[Giu]],MarketingActual[#Headers],0)) -> € 20.00 | I25: =INDEX(MarketingPlan[],MATCH(INDEX(MarketingVariances[],ROW()-ROW(MarketingVariances[[#Headers],[Lug]]),1),INDEX(MarketingPlan[],,1),0),MATCH(MarketingVariances[[#Headers],[Lug]],MarketingPlan[#Headers],0))-INDEX(MarketingActual[],MATCH(INDEX(MarketingVariances[],ROW()-ROW(MarketingVariances[[#Headers],[Lug]]),1),INDEX(MarketingPlan[],,1),0),MATCH(MarketingVariances[[#Headers],[Lug]],MarketingActual[#Headers],0)) -> € 200.00 | J25: =INDEX(MarketingPlan[],MATCH(INDEX(MarketingVariances[],ROW()-ROW(MarketingVariances[[#Headers],[Ago]]),1),INDEX(MarketingPlan[],,1),0),MATCH(MarketingVariances[[#Headers],[Ago]],MarketingPlan[#Headers],0))-INDEX(MarketingActual[],MATCH(INDEX(MarketingVariances[],ROW()-ROW(MarketingVariances[[#Headers],[Ago]]),1),INDEX(MarketingPlan[],,1),0),MATCH(MarketingVariances[[#Headers],[Ago]],MarketingActual[#Headers],0)) -> € 200.00 | K25: =INDEX(MarketingPlan[],MATCH(INDEX(MarketingVariances[],ROW()-ROW(MarketingVariances[[#Headers],[Set]]),1),INDEX(MarketingPlan[],,1),0),MATCH(MarketingVariances[[#Headers],[Set]],MarketingPlan[#Headers],0))-INDEX(MarketingActual[],MATCH(INDEX(MarketingVariances[],ROW()-ROW(MarketingVariances[[#Headers],[Set]]),1),INDEX(MarketingPlan[],,1),0),MATCH(MarketingVariances[[#Headers],[Set]],MarketingActual[#Headers],0)) -> € 200.00 | L25: =INDEX(MarketingPlan[],MATCH(INDEX(MarketingVariances[],ROW()-ROW(MarketingVariances[[#Headers],[Ott]]),1),INDEX(MarketingPlan[],,1),0),MATCH(MarketingVariances[[#Headers],[Ott]],MarketingPlan[#Headers],0))-INDEX(MarketingActual[],MATCH(INDEX(MarketingVariances[],ROW()-ROW(MarketingVariances[[#Headers],[Ott]]),1),INDEX(MarketingPlan[],,1),0),MATCH(MarketingVariances[[#Headers],[Ott]],MarketingActual[#Headers],0)) -> € 200.00 | M25: =INDEX(MarketingPlan[],MATCH(INDEX(MarketingVariances[],ROW()-ROW(MarketingVariances[[#Headers],[Nov]]),1),INDEX(MarketingPlan[],,1),0),MATCH(MarketingVariances[[#Headers],[Nov]],MarketingPlan[#Headers],0))-INDEX(MarketingActual[],MATCH(INDEX(MarketingVariances[],ROW()-ROW(MarketingVariances[[#Headers],[Nov]]),1),INDEX(MarketingPlan[],,1),0),MATCH(MarketingVariances[[#Headers],[Nov]],MarketingActual[#Headers],0)) -> € 200.00 | N25: =INDEX(MarketingPlan[],MATCH(INDEX(MarketingVariances[],ROW()-ROW(MarketingVariances[[#Headers],[Dic]]),1),INDEX(MarketingPlan[],,1),0),MATCH(MarketingVariances[[#Headers],[Dic]],MarketingPlan[#Headers],0))-INDEX(MarketingActual[],MATCH(INDEX(MarketingVariances[],ROW()-ROW(MarketingVariances[[#Headers],[Dic]]),1),INDEX(MarketingPlan[],,1),0),MATCH(MarketingVariances[[#Headers],[Dic]],MarketingActual[#Headers],0)) -> € 200.00 | O25: =SUM(MarketingVariances[[#This Row],[Gen]:[Dic]]) -> € 820.00
B26: Eventi di marketing | C26: =INDEX(MarketingPlan[],MATCH(INDEX(MarketingVariances[],ROW()-ROW(MarketingVariances[[#Headers],[Gen]]),1),INDEX(MarketingPlan[],,1),0),MATCH(MarketingVariances[[#Headers],[Gen]],MarketingPlan[#Headers],0))-INDEX(MarketingActual[],MATCH(INDEX(MarketingVariances[],ROW()-ROW(MarketingVariances[[#Headers],[Gen]]),1),INDEX(MarketingPlan[],,1),0),MATCH(MarketingVariances[[#Headers],[Gen]],MarketingActual[#Headers],0)) -> € 200.00 | D26: =INDEX(MarketingPlan[],MATCH(INDEX(MarketingVariances[],ROW()-ROW(MarketingVariances[[#Headers],[Feb]]),1),INDEX(MarketingPlan[],,1),0),MATCH(MarketingVariances[[#Headers],[Feb]],MarketingPlan[#Headers],0))-INDEX(MarketingActual[],MATCH(INDEX(MarketingVariances[],ROW()-ROW(MarketingVariances[[#Headers],[Feb]]),1),INDEX(MarketingPlan[],,1),0),MATCH(MarketingVariances[[#Headers],[Feb]],MarketingActual[#Headers],0)) -> -€ 200.00 | E26: =INDEX(MarketingPlan[],MATCH(INDEX(MarketingVariances[],ROW()-ROW(MarketingVariances[[#Headers],[Mar]]),1),INDEX(MarketingPlan[],,1),0),MATCH(MarketingVariances[[#Headers],[Mar]],MarketingPlan[#Headers],0))-INDEX(MarketingActual[],MATCH(INDEX(MarketingVariances[],ROW()-ROW(MarketingVariances[[#Headers],[Mar]]),1),INDEX(MarketingPlan[],,1),0),MATCH(MarketingVariances[[#Headers],[Mar]],MarketingActual[#Headers],0)) -> -€ 200.00 | F26: =INDEX(MarketingPlan[],MATCH(INDEX(MarketingVariances[],ROW()-ROW(MarketingVariances[[#Headers],[Apr]]),1),INDEX(MarketingPlan[],,1),0),MATCH(MarketingVariances[[#Headers],[Apr]],MarketingPlan[#Headers],0))-INDEX(MarketingActual[],MATCH(INDEX(MarketingVariances[],ROW()-ROW(MarketingVariances[[#Headers],[Apr]]),1),INDEX(MarketingPlan[],,1),0),MATCH(MarketingVariances[[#Headers],[Apr]],MarketingActual[#Headers],0)) -> € 300.00 | G26: =INDEX(MarketingPlan[],MATCH(INDEX(MarketingVariances[],ROW()-ROW(MarketingVariances[[#Headers],[Mag]]),1),INDEX(MarketingPlan[],,1),0),MATCH(MarketingVariances[[#Headers],[Mag]],MarketingPlan[#Headers],0))-INDEX(MarketingActual[],MATCH(INDEX(MarketingVariances[],ROW()-ROW(MarketingVariances[[#Headers],[Mag]]),1),INDEX(MarketingPlan[],,1),0),MATCH(MarketingVariances[[#Headers],[Mag]],MarketingActual[#Headers],0)) -> € 500.00 | H26: =INDEX(MarketingPlan[],MATCH(INDEX(MarketingVariances[],ROW()-ROW(MarketingVariances[[#Headers],[Giu]]),1),INDEX(MarketingPlan[],,1),0),MATCH(MarketingVariances[[#Headers],[Giu]],MarketingPlan[#Headers],0))-INDEX(MarketingActual[],MATCH(INDEX(MarketingVariances[],ROW()-ROW(MarketingVariances[[#Headers],[Giu]]),1),INDEX(MarketingPlan[],,1),0),MATCH(MarketingVariances[[#Headers],[Giu]],MarketingActual[#Headers],0)) -> -€ 300.00 | I26: =INDEX(MarketingPlan[],MATCH(INDEX(MarketingVariances[],ROW()-ROW(MarketingVariances[[#Headers],[Lug]]),1),INDEX(MarketingPlan[],,1),0),MATCH(MarketingVariances[[#Headers],[Lug]],MarketingPlan[#Headers],0))-INDEX(MarketingActual[],MATCH(INDEX(MarketingVariances[],ROW()-ROW(MarketingVariances[[#Headers],[Lug]]),1),INDEX(MarketingPlan[],,1),0),MATCH(MarketingVariances[[#Headers],[Lug]],MarketingActual[#Headers],0)) -> € 2,000.00 | J26: =INDEX(MarketingPlan[],MATCH(INDEX(MarketingVariances[],ROW()-ROW(MarketingVariances[[#Headers],[Ago]]),1),INDEX(MarketingPlan[],,1),0),MATCH(MarketingVariances[[#Headers],[Ago]],MarketingPlan[#Headers],0))-INDEX(MarketingActual[],MATCH(INDEX(MarketingVariances[],ROW()-ROW(MarketingVariances[[#Headers],[Ago]]),1),INDEX(MarketingPlan[],,1),0),MATCH(MarketingVariances[[#Headers],[Ago]],MarketingActual[#Headers],0)) -> € 5,000.00 | K26: =INDEX(MarketingPlan[],MATCH(INDEX(MarketingVariances[],ROW()-ROW(MarketingVariances[[#Headers],[Set]]),1),INDEX(MarketingPlan[],,1),0),MATCH(MarketingVariances[[#Headers],[Set]],MarketingPlan[#Headers],0))-INDEX(MarketingActual[],MATCH(INDEX(MarketingVariances[],ROW()-ROW(MarketingVariances[[#Headers],[Set]]),1),INDEX(MarketingPlan[],,1),0),MATCH(MarketingVariances[[#Headers],[Set]],MarketingActual[#Headers],0)) -> € 2,000.00 | L26: =INDEX(MarketingPlan[],MATCH(INDEX(MarketingVariances[],ROW()-ROW(MarketingVariances[[#Headers],[Ott]]),1),INDEX(MarketingPlan[],,1),0),MATCH(MarketingVariances[[#Headers],[Ott]],MarketingPlan[#Headers],0))-INDEX(MarketingActual[],MATCH(INDEX(MarketingVariances[],ROW()-ROW(MarketingVariances[[#Headers],[Ott]]),1),INDEX(MarketingPlan[],,1),0),MATCH(MarketingVariances[[#Headers],[Ott]],MarketingActual[#Headers],0)) -> € 2,000.00 | M26: =INDEX(MarketingPlan[],MATCH(INDEX(MarketingVariances[],ROW()-ROW(MarketingVariances[[#Headers],[Nov]]),1),INDEX(MarketingPlan[],,1),0),MATCH(MarketingVariances[[#Headers],[Nov]],MarketingPlan[#Headers],0))-INDEX(MarketingActual[],MATCH(INDEX(MarketingVariances[],ROW()-ROW(MarketingVariances[[#Headers],[Nov]]),1),INDEX(MarketingPlan[],,1),0),MATCH(MarketingVariances[[#Headers],[Nov]],MarketingActual[#Headers],0)) -> € 2,000.00 | N26: =INDEX(MarketingPlan[],MATCH(INDEX(MarketingVariances[],ROW()-ROW(MarketingVariances[[#Headers],[Dic]]),1),INDEX(MarketingPlan[],,1),0),MATCH(MarketingVariances[[#Headers],[Dic]],MarketingPlan[#Headers],0))-INDEX(MarketingActual[],MATCH(INDEX(MarketingVariances[],ROW()-ROW(MarketingVariances[[#Headers],[Dic]]),1),INDEX(MarketingPlan[],,1),0),MATCH(MarketingVariances[[#Headers],[Dic]],MarketingActual[#Headers],0)) -> € 5,000.00 | O26: =SUM(MarketingVariances[[#This Row],[Gen]:[Dic]]) -> € 18,300.00
B27: Spese varie | C27: =INDEX(MarketingPlan[],MATCH(INDEX(MarketingVariances[],ROW()-ROW(MarketingVariances[[#Headers],[Gen]]),1),INDEX(MarketingPlan[],,1),0),MATCH(MarketingVariances[[#Headers],[Gen]],MarketingPlan[#Headers],0))-INDEX(MarketingActual[],MATCH(INDEX(MarketingVariances[],ROW()-ROW(MarketingVariances[[#Headers],[Gen]]),1),INDEX(MarketingPlan[],,1),0),MATCH(MarketingVariances[[#Headers],[Gen]],MarketingActual[#Headers],0)) -> € 55.00 | D27: =INDEX(MarketingPlan[],MATCH(INDEX(MarketingVariances[],ROW()-ROW(MarketingVariances[[#Headers],[Feb]]),1),INDEX(MarketingPlan[],,1),0),MATCH(MarketingVariances[[#Headers],[Feb]],MarketingPlan[#Headers],0))-INDEX(MarketingActual[],MATCH(INDEX(MarketingVariances[],ROW()-ROW(MarketingVariances[[#Headers],[Feb]]),1),INDEX(MarketingPlan[],,1),0),MATCH(MarketingVariances[[#Headers],[Feb]],MarketingActual[#Headers],0)) -> € 44.00 | E27: =INDEX(MarketingPlan[],MATCH(INDEX(MarketingVariances[],ROW()-ROW(MarketingVariances[[#Headers],[Mar]]),1),INDEX(MarketingPlan[],,1),0),MATCH(MarketingVariances[[#Headers],[Mar]],MarketingPlan[#Headers],0))-INDEX(MarketingActual[],MATCH(INDEX(MarketingVariances[],ROW()-ROW(MarketingVariances[[#Headers],[Mar]]),1),INDEX(MarketingPlan[],,1),0),MATCH(MarketingVariances[[#Headers],[Mar]],MarketingActual[#Headers],0)) -> € 77.00 | F27: =INDEX(MarketingPlan[],MATCH(INDEX(MarketingVariances[],ROW()-ROW(MarketingVariances[[#Headers],[Apr]]),1),INDEX(MarketingPlan[],,1),0),MATCH(MarketingVariances[[#Headers],[Apr]],MarketingPlan[#Headers],0))-INDEX(MarketingActual[],MATCH(INDEX(MarketingVariances[],ROW()-ROW(MarketingVariances[[#Headers],[Apr]]),1),INDEX(MarketingPlan[],,1),0),MATCH(MarketingVariances[[#Headers],[Apr]],MarketingActual[#Headers],0)) -> -€ 23.00 | G27: =INDEX(MarketingPlan[],MATCH(INDEX(MarketingVariances[],ROW()-ROW(MarketingVariances[[#Headers],[Mag]]),1),INDEX(MarketingPlan[],,1),0),MATCH(MarketingVariances[[#Headers],[Mag]],MarketingPlan[#Headers],0))-INDEX(MarketingActual[],MATCH(INDEX(MarketingVariances[],ROW()-ROW(MarketingVariances[[#Headers],[Mag]]),1),INDEX(MarketingPlan[],,1),0),MATCH(MarketingVariances[[#Headers],[Mag]],MarketingActual[#Headers],0)) -> € 13.00 | H27: =INDEX(MarketingPlan[],MATCH(INDEX(MarketingVariances[],ROW()-ROW(MarketingVariances[[#Headers],[Giu]]),1),INDEX(MarketingPlan[],,1),0),MATCH(MarketingVariances[[#Headers],[Giu]],MarketingPlan[#Headers],0))-INDEX(MarketingActual[],MATCH(INDEX(MarketingVariances[],ROW()-ROW(MarketingVariances[[#Headers],[Giu]]),1),INDEX(MarketingPlan[],,1),0),MATCH(MarketingVariances[[#Headers],[Giu]],MarketingActual[#Headers],0)) -> -€ 45.00 | I27: =INDEX(MarketingPlan[],MATCH(INDEX(MarketingVariances[],ROW()-ROW(MarketingVariances[[#Headers],[Lug]]),1),INDEX(MarketingPlan[],,1),0),MATCH(MarketingVariances[[#Headers],[Lug]],MarketingPlan[#Headers],0))-INDEX(MarketingActual[],MATCH(INDEX(MarketingVariances[],ROW()-ROW(MarketingVariances[[#Headers],[Lug]]),1),INDEX(MarketingPlan[],,1),0),MATCH(MarketingVariances[[#Headers],[Lug]],MarketingActual[#Headers],0)) -> € 200.00 | J27: =INDEX(MarketingPlan[],MATCH(INDEX(MarketingVariances[],ROW()-ROW(MarketingVariances[[#Headers],[Ago]]),1),INDEX(MarketingPlan[],,1),0),MATCH(MarketingVariances[[#Headers],[Ago]],MarketingPlan[#Headers],0))-INDEX(MarketingActual[],MATCH(INDEX(MarketingVariances[],ROW()-ROW(MarketingVariances[[#Headers],[Ago]]),1),INDEX(MarketingPlan[],,1),0),MATCH(MarketingVariances[[#Headers],[Ago]],MarketingActual[#Headers],0)) -> € 200.00 | K27: =INDEX(MarketingPlan[],MATCH(INDEX(MarketingVariances[],ROW()-ROW(MarketingVariances[[#Headers],[Set]]),1),INDEX(MarketingPlan[],,1),0),MATCH(MarketingVariances[[#Headers],[Set]],MarketingPlan[#Headers],0))-INDEX(MarketingActual[],MATCH(INDEX(MarketingVariances[],ROW()-ROW(MarketingVariances[[#Headers],[Set]]),1),INDEX(MarketingPlan[],,1),0),MATCH(MarketingVariances[[#Headers],[Set]],MarketingActual[#Headers],0)) -> € 200.00 | L27: =INDEX(MarketingPlan[],MATCH(INDEX(MarketingVariances[],ROW()-ROW(MarketingVariances[[#Headers],[Ott]]),1),INDEX(MarketingPlan[],,1),0),MATCH(MarketingVariances[[#Headers],[Ott]],MarketingPlan[#Headers],0))-INDEX(MarketingActual[],MATCH(INDEX(MarketingVariances[],ROW()-ROW(MarketingVariances[[#Headers],[Ott]]),1),INDEX(MarketingPlan[],,1),0),MATCH(MarketingVariances[[#Headers],[Ott]],MarketingActual[#Headers],0)) -> € 200.00 | M27: =INDEX(MarketingPlan[],MATCH(INDEX(MarketingVariances[],ROW()-ROW(MarketingVariances[[#Headers],[Nov]]),1),INDEX(MarketingPlan[],,1),0),MATCH(MarketingVariances[[#Headers],[Nov]],MarketingPlan[#Headers],0))-INDEX(MarketingActual[],MATCH(INDEX(MarketingVariances[],ROW()-ROW(MarketingVariances[[#Headers],[Nov]]),1),INDEX(MarketingPlan[],,1),0),MATCH(MarketingVariances[[#Headers],[Nov]],MarketingActual[#Headers],0)) -> € 200.00 | N27: =INDEX(MarketingPlan[],MATCH(INDEX(MarketingVariances[],ROW()-ROW(MarketingVariances[[#Headers],[Dic]]),1),INDEX(MarketingPlan[],,1),0),MATCH(MarketingVariances[[#Headers],[Dic]],MarketingPlan[#Headers],0))-INDEX(MarketingActual[],MATCH(INDEX(MarketingVariances[],ROW()-ROW(MarketingVariances[[#Headers],[Dic]]),1),INDEX(MarketingPlan[],,1),0),MATCH(MarketingVariances[[#Headers],[Dic]],MarketingActual[#Headers],0)) -> € 200.00 | O27: =SUM(MarketingVariances[[#This Row],[Gen]:[Dic]]) -> € 1,321.00
B28: Subtotale | C28: =SUBTOTAL(109,MarketingVariances[Gen]) -> € 555.00 | D28: =SUBTOTAL(109,MarketingVariances[Feb]) -> -€ 456.00 | E28: =SUBTOTAL(109,MarketingVariances[Mar]) -> -€ 23.00 | F28: =SUBTOTAL(109,MarketingVariances[Apr]) -> -€ 123.00 | G28: =SUBTOTAL(109,MarketingVariances[Mag]) -> € 113.00 | H28: =SUBTOTAL(109,MarketingVariances[Giu]) -> -€ 825.00 | I28: =SUBTOTAL(109,MarketingVariances[Lug]) -> € 8,100.00 | J28: =SUBTOTAL(109,MarketingVariances[Ago]) -> € 6,100.00 | K28: =SUBTOTAL(109,MarketingVariances[Set]) -> € 3,100.00 | L28: =SUBTOTAL(109,MarketingVariances[Ott]) -> € 8,100.00 | M28: =SUBTOTAL(109,MarketingVariances[Nov]) -> € 3,100.00 | N28: =SUBTOTAL(109,MarketingVariances[Dic]) -> € 6,900.00 | O28: =SUBTOTAL(109,MarketingVariances[ANNO]) -> € 34,641.00
B30: FORMAZIONE/VIAGGIO | C30: Gen | D30: Feb | E30: Mar | F30: Apr | G30: Mag | H30: Giu | I30: Lug | J30: Ago | K30: Set | L30: Ott | M30: Nov | N30: Dic | O30: ANNO
B31: Corsi di formazione | C31: =INDEX(TrainingAndTravelPlan[],MATCH(INDEX(TrainingAndTravelVariances[],ROW()-ROW(TrainingAndTravelVariances[[#Headers],[Gen]]),1),INDEX(TrainingAndTravelPlan[],,1),0),MATCH(TrainingAndTravelVariances[[#Headers],[Gen]],TrainingAndTravelPlan[#Headers],0))-INDEX(TrainingAndTravelActual[],MATCH(INDEX(TrainingAndTravelVariances[],ROW()-ROW(TrainingAndTravelVariances[[#Headers],[Gen]]),1),INDEX(TrainingAndTravelPlan[],,1),0),MATCH(TrainingAndTravelVariances[[#Headers],[Gen]],TrainingAndTravelActual[#Headers],0)) -> € 400.00 | D31: =INDEX(TrainingAndTravelPlan[],MATCH(INDEX(TrainingAndTravelVariances[],ROW()-ROW(TrainingAndTravelVariances[[#Headers],[Feb]]),1),INDEX(TrainingAndTravelPlan[],,1),0),MATCH(TrainingAndTravelVariances[[#Headers],[Feb]],TrainingAndTravelPlan[#Headers],0))-INDEX(TrainingAndTravelActual[],MATCH(INDEX(TrainingAndTravelVariances[],ROW()-ROW(TrainingAndTravelVariances[[#Headers],[Feb]]),1),INDEX(TrainingAndTravelPlan[],,1),0),MATCH(TrainingAndTravelVariances[[#Headers],[Feb]],TrainingAndTravelActual[#Headers],0)) -> -€ 400.00 | E31: =INDEX(TrainingAndTravelPlan[],MATCH(INDEX(TrainingAndTravelVariances[],ROW()-ROW(TrainingAndTravelVariances[[#Headers],[Mar]]),1),INDEX(TrainingAndTravelPlan[],,1),0),MATCH(TrainingAndTravelVariances[[#Headers],[Mar]],TrainingAndTravelPlan[#Headers],0))-INDEX(TrainingAndTravelActual[],MATCH(INDEX(TrainingAndTravelVariances[],ROW()-ROW(TrainingAndTravelVariances[[#Headers],[Mar]]),1),INDEX(TrainingAndTravelPlan[],,1),0),MATCH(TrainingAndTravelVariances[[#Headers],[Mar]],TrainingAndTravelActual[#Headers],0)) -> € 600.00 | F31: =INDEX(TrainingAndTravelPlan[],MATCH(INDEX(TrainingAndTravelVariances[],ROW()-ROW(TrainingAndTravelVariances[[#Headers],[Apr]]),1),INDEX(TrainingAndTravelPlan[],,1),0),MATCH(TrainingAndTravelVariances[[#Headers],[Apr]],TrainingAndTravelPlan[#Headers],0))-INDEX(TrainingAndTravelActual[],MATCH(INDEX(TrainingAndTravelVariances[],ROW()-ROW(TrainingAndTravelVariances[[#Headers],[Apr]]),1),INDEX(TrainingAndTravelPlan[],,1),0),MATCH(TrainingAndTravelVariances[[#Headers],[Apr]],TrainingAndTravelActual[#Headers],0)) -> € 400.00 | G31: =INDEX(TrainingAndTravelPlan[],MATCH(INDEX(TrainingAndTravelVariances[],ROW()-ROW(TrainingAndTravelVariances[[#Headers],[Mag]]),1),INDEX(TrainingAndTravelPlan[],,1),0),MATCH(TrainingAndTravelVariances[[#Headers],[Mag]],TrainingAndTravelPlan[#Headers],0))-INDEX(TrainingAndTravelActual[],MATCH(INDEX(TrainingAndTravelVariances[],ROW()-ROW(TrainingAndTravelVariances[[#Headers],[Mag]]),1),INDEX(TrainingAndTravelPlan[],,1),0),MATCH(TrainingAndTravelVariances[[#Headers],[Mag]],TrainingAndTravelActual[#Headers],0)) -> € 800.00 | H31: =INDEX(TrainingAndTravelPlan[],MATCH(INDEX(TrainingAndTravelVariances[],ROW()-ROW(TrainingAndTravelVariances[[#Headers],[Giu]]),1),INDEX(TrainingAndTravelPlan[],,1),0),MATCH(TrainingAndTravelVariances[[#Headers],[Giu]],TrainingAndTravelPlan[#Headers],0))-INDEX(TrainingAndTravelActual[],MATCH(INDEX(TrainingAndTravelVariances[],ROW()-ROW(TrainingAndTravelVariances[[#Headers],[Giu]]),1),INDEX(TrainingAndTravelPlan[],,1),0),MATCH(TrainingAndTravelVariances[[#Headers],[Giu]],TrainingAndTravelActual[#Headers],0)) -> -€ 800.00 | I31: =INDEX(TrainingAndTravelPlan[],MATCH(INDEX(TrainingAndTravelVariances[],ROW()-ROW(TrainingAndTravelVariances[[#Headers],[Lug]]),1),INDEX(TrainingAndTravelPlan[],,1),0),MATCH(TrainingAndTravelVariances[[#Headers],[Lug]],TrainingAndTravelPlan[#Headers],0))-INDEX(TrainingAndTravelActual[],MATCH(INDEX(TrainingAndTravelVariances[],ROW()-ROW(TrainingAndTravelVariances[[#Headers],[Lug]]),1),INDEX(TrainingAndTravelPlan[],,1),0),MATCH(TrainingAndTravelVariances[[#Headers],[Lug]],TrainingAndTravelActual[#Headers],0)) -> € 2,000.00 | J31: =INDEX(TrainingAndTravelPlan[],MATCH(INDEX(TrainingAndTravelVariances[],ROW()-ROW(TrainingAndTravelVariances[[#Headers],[Ago]]),1),INDEX(TrainingAndTravelPlan[],,1),0),MATCH(TrainingAndTravelVariances[[#Headers],[Ago]],TrainingAndTravelPlan[#Headers],0))-INDEX(TrainingAndTravelActual[],MATCH(INDEX(TrainingAndTravelVariances[],ROW()-ROW(TrainingAndTravelVariances[[#Headers],[Ago]]),1),INDEX(TrainingAndTravelPlan[],,1),0),MATCH(TrainingAndTravelVariances[[#Headers],[Ago]],TrainingAndTravelActual[#Headers],0)) -> € 2,000.00 | K31: =INDEX(TrainingAndTravelPlan[],MATCH(INDEX(TrainingAndTravelVariances[],ROW()-ROW(TrainingAndTravelVariances[[#Headers],[Set]]),1),INDEX(TrainingAndTravelPlan[],,1),0),MATCH(TrainingAndTravelVariances[[#Headers],[Set]],TrainingAndTravelPlan[#Headers],0))-INDEX(TrainingAndTravelActual[],MATCH(INDEX(TrainingAndTravelVariances[],ROW()-ROW(TrainingAndTravelVariances[[#Headers],[Set]]),1),INDEX(TrainingAndTravelPlan[],,1),0),MATCH(TrainingAndTravelVariances[[#Headers],[Set]],TrainingAndTravelActual[#Headers],0)) -> € 2,000.00 | L31: =INDEX(TrainingAndTravelPlan[],MATCH(INDEX(TrainingAndTravelVariances[],ROW()-ROW(TrainingAndTravelVariances[[#Headers],[Ott]]),1),INDEX(TrainingAndTravelPlan[],,1),0),MATCH(TrainingAndTravelVariances[[#Headers],[Ott]],TrainingAndTravelPlan[#Headers],0))-INDEX(TrainingAndTravelActual[],MATCH(INDEX(TrainingAndTravelVariances[],ROW()-ROW(TrainingAndTravelVariances[[#Headers],[Ott]]),1),INDEX(TrainingAndTravelPlan[],,1),0),MATCH(TrainingAndTravelVariances[[#Headers],[Ott]],TrainingAndTravelActual[#Headers],0)) -> € 2,000.00 | M31: =INDEX(TrainingAndTravelPlan[],MATCH(INDEX(TrainingAndTravelVariances[],ROW()-ROW(TrainingAndTravelVariances[[#Headers],[Nov]]),1),INDEX(TrainingAndTravelPlan[],,1),0),MATCH(TrainingAndTravelVariances[[#Headers],[Nov]],TrainingAndTravelPlan[#Headers],0))-INDEX(TrainingAndTravelActual[],MATCH(INDEX(TrainingAndTravelVariances[],ROW()-ROW(TrainingAndTravelVariances[[#Headers],[Nov]]),1),INDEX(TrainingAndTravelPlan[],,1),0),MATCH(TrainingAndTravelVariances[[#Headers],[Nov]],TrainingAndTravelActual[#Headers],0)) -> € 2,000.00 | N31: =INDEX(TrainingAndTravelPlan[],MATCH(INDEX(TrainingAndTravelVariances[],ROW()-ROW(TrainingAndTravelVariances[[#Headers],[Dic]]),1),INDEX(TrainingAndTravelPlan[],,1),0),MATCH(TrainingAndTravelVariances[[#Headers],[Dic]],TrainingAndTravelPlan[#Headers],0))-INDEX(TrainingAndTravelActual[],MATCH(INDEX(TrainingAndTravelVariances[],ROW()-ROW(TrainingAndTravelVariances[[#Headers],[Dic]]),1),INDEX(TrainingAndTravelPlan[],,1),0),MATCH(TrainingAndTravelVariances[[#Headers],[Dic]],TrainingAndTravelActual[#Headers],0)) -> € 2,000.00 | O31: =SUM(TrainingAndTravelVariances[[#This Row],[Gen]:[Dic]]) -> € 13,000.00
B32: Costi di viaggio relativi alla formazione | C32: =INDEX(TrainingAndTravelPlan[],MATCH(INDEX(TrainingAndTravelVariances[],ROW()-ROW(TrainingAndTravelVariances[[#Headers],[Gen]]),1),INDEX(TrainingAndTravelPlan[],,1),0),MATCH(TrainingAndTravelVariances[[#Headers],[Gen]],TrainingAndTravelPlan[#Headers],0))-INDEX(TrainingAndTravelActual[],MATCH(INDEX(TrainingAndTravelVariances[],ROW()-ROW(TrainingAndTravelVariances[[#Headers],[Gen]]),1),INDEX(TrainingAndTravelPlan[],,1),0),MATCH(TrainingAndTravelVariances[[#Headers],[Gen]],TrainingAndTravelActual[#Headers],0)) -> € 800.00 | D32: =INDEX(TrainingAndTravelPlan[],MATCH(INDEX(TrainingAndTravelVariances[],ROW()-ROW(TrainingAndTravelVariances[[#Headers],[Feb]]),1),INDEX(TrainingAndTravelPlan[],,1),0),MATCH(TrainingAndTravelVariances[[#Headers],[Feb]],TrainingAndTravelPlan[#Headers],0))-INDEX(TrainingAndTravelActual[],MATCH(INDEX(TrainingAndTravelVariances[],ROW()-ROW(TrainingAndTravelVariances[[#Headers],[Feb]]),1),INDEX(TrainingAndTravelPlan[],,1),0),MATCH(TrainingAndTravelVariances[[#Headers],[Feb]],TrainingAndTravelActual[#Headers],0)) -> -€ 200.00 | E32: =INDEX(TrainingAndTravelPlan[],MATCH(INDEX(TrainingAndTravelVariances[],ROW()-ROW(TrainingAndTravelVariances[[#Headers],[Mar]]),1),INDEX(TrainingAndTravelPlan[],,1),0),MATCH(TrainingAndTravelVariances[[#Headers],[Mar]],TrainingAndTravelPlan[#Headers],0))-INDEX(TrainingAndTravelActual[],MATCH(INDEX(TrainingAndTravelVariances[],ROW()-ROW(TrainingAndTravelVariances[[#Headers],[Mar]]),1),INDEX(TrainingAndTravelPlan[],,1),0),MATCH(TrainingAndTravelVariances[[#Headers],[Mar]],TrainingAndTravelActual[#Headers],0)) -> € 600.00 | F32: =INDEX(TrainingAndTravelPlan[],MATCH(INDEX(TrainingAndTravelVariances[],ROW()-ROW(TrainingAndTravelVariances[[#Headers],[Apr]]),1),INDEX(TrainingAndTravelPlan[],,1),0),MATCH(TrainingAndTravelVariances[[#Headers],[Apr]],TrainingAndTravelPlan[#Headers],0))-INDEX(TrainingAndTravelActual[],MATCH(INDEX(TrainingAndTravelVariances[],ROW()-ROW(TrainingAndTravelVariances[[#Headers],[Apr]]),1),INDEX(TrainingAndTravelPlan[],,1),0),MATCH(TrainingAndTravelVariances[[#Headers],[Apr]],TrainingAndTravelActual[#Headers],0)) -> € 800.00 | G32: =INDEX(TrainingAndTravelPlan[],MATCH(INDEX(TrainingAndTravelVariances[],ROW()-ROW(TrainingAndTravelVariances[[#Headers],[Mag]]),1),INDEX(TrainingAndTravelPlan[],,1),0),MATCH(TrainingAndTravelVariances[[#Headers],[Mag]],TrainingAndTravelPlan[#Headers],0))-INDEX(TrainingAndTravelActual[],MATCH(INDEX(TrainingAndTravelVariances[],ROW()-ROW(TrainingAndTravelVariances[[#Headers],[Mag]]),1),INDEX(TrainingAndTravelPlan[],,1),0),MATCH(TrainingAndTravelVariances[[#Headers],[Mag]],TrainingAndTravelActual[#Headers],0)) -> € 1,200.00 | H32: =INDEX(TrainingAndTravelPlan[],MATCH(INDEX(TrainingAndTravelVariances[],ROW()-ROW(TrainingAndTravelVariances[[#Headers],[Giu]]),1),INDEX(TrainingAndTravelPlan[],,1),0),MATCH(TrainingAndTravelVariances[[#Headers],[Giu]],TrainingAndTravelPlan[#Headers],0))-INDEX(TrainingAndTravelActual[],MATCH(INDEX(TrainingAndTravelVariances[],ROW()-ROW(TrainingAndTravelVariances[[#Headers],[Giu]]),1),INDEX(TrainingAndTravelPlan[],,1),0),MATCH(TrainingAndTravelVariances[[#Headers],[Giu]],TrainingAndTravelActual[#Headers],0)) -> -€ 1,500.00 | I32: =INDEX(TrainingAndTravelPlan[],MATCH(INDEX(TrainingAndTravelVariances[],ROW()-ROW(TrainingAndTravelVariances[[#Headers],[Lug]]),1),INDEX(TrainingAndTravelPlan[],,1),0),MATCH(TrainingAndTravelVariances[[#Headers],[Lug]],TrainingAndTravelPlan[#Headers],0))-INDEX(TrainingAndTravelActual[],MATCH(INDEX(TrainingAndTravelVariances[],ROW()-ROW(TrainingAndTravelVariances[[#Headers],[Lug]]),1),INDEX(TrainingAndTravelPlan[],,1),0),MATCH(TrainingAndTravelVariances[[#Headers],[Lug]],TrainingAndTravelActual[#Headers],0)) -> € 2,000.00 | J32: =INDEX(TrainingAndTravelPlan[],MATCH(INDEX(TrainingAndTravelVariances[],ROW()-ROW(TrainingAndTravelVariances[[#Headers],[Ago]]),1),INDEX(TrainingAndTravelPlan[],,1),0),MATCH(TrainingAndTravelVariances[[#Headers],[Ago]],TrainingAndTravelPlan[#Headers],0))-INDEX(TrainingAndTravelActual[],MATCH(INDEX(TrainingAndTravelVariances[],ROW()-ROW(TrainingAndTravelVariances[[#Headers],[Ago]]),1),INDEX(TrainingAndTravelPlan[],,1),0),MATCH(TrainingAndTravelVariances[[#Headers],[Ago]],TrainingAndTravelActual[#Headers],0)) -> € 2,000.00 | K32: =INDEX(TrainingAndTravelPlan[],MATCH(INDEX(TrainingAndTravelVariances[],ROW()-ROW(TrainingAndTravelVariances[[#Headers],[Set]]),1),INDEX(TrainingAndTravelPlan[],,1),0),MATCH(TrainingAndTravelVariances[[#Headers],[Set]],TrainingAndTravelPlan[#Headers],0))-INDEX(TrainingAndTravelActual[],MATCH(INDEX(TrainingAndTravelVariances[],ROW()-ROW(TrainingAndTravelVariances[[#Headers],[Set]]),1),INDEX(TrainingAndTravelPlan[],,1),0),MATCH(TrainingAndTravelVariances[[#Headers],[Set]],TrainingAndTravelActual[#Headers],0)) -> € 2,000.00 | L32: =INDEX(TrainingAndTravelPlan[],MATCH(INDEX(TrainingAndTravelVariances[],ROW()-ROW(TrainingAndTravelVariances[[#Headers],[Ott]]),1),INDEX(TrainingAndTravelPlan[],,1),0),MATCH(TrainingAndTravelVariances[[#Headers],[Ott]],TrainingAndTravelPlan[#Headers],0))-INDEX(TrainingAndTravelActual[],MATCH(INDEX(TrainingAndTravelVariances[],ROW()-ROW(TrainingAndTravelVariances[[#Headers],[Ott]]),1),INDEX(TrainingAndTravelPlan[],,1),0),MATCH(TrainingAndTravelVariances[[#Headers],[Ott]],TrainingAndTravelActual[#Headers],0)) -> € 2,000.00 | M32: =INDEX(TrainingAndTravelPlan[],MATCH(INDEX(TrainingAndTravelVariances[],ROW()-ROW(TrainingAndTravelVariances[[#Headers],[Nov]]),1),INDEX(TrainingAndTravelPlan[],,1),0),MATCH(TrainingAndTravelVariances[[#Headers],[Nov]],TrainingAndTravelPlan[#Headers],0))-INDEX(TrainingAndTravelActual[],MATCH(INDEX(TrainingAndTravelVariances[],ROW()-ROW(TrainingAndTravelVariances[[#Headers],[Nov]]),1),INDEX(TrainingAndTravelPlan[],,1),0),MATCH(TrainingAndTravelVariances[[#Headers],[Nov]],TrainingAndTravelActual[#Headers],0)) -> € 2,000.00 | N32: =INDEX(TrainingAndTravelPlan[],MATCH(INDEX(TrainingAndTravelVariances[],ROW()-ROW(TrainingAndTravelVariances[[#Headers],[Dic]]),1),INDEX(TrainingAndTravelPlan[],,1),0),MATCH(TrainingAndTravelVariances[[#Headers],[Dic]],TrainingAndTravelPlan[#Headers],0))-INDEX(TrainingAndTravelActual[],MATCH(INDEX(TrainingAndTravelVariances[],ROW()-ROW(TrainingAndTravelVariances[[#Headers],[Dic]]),1),INDEX(TrainingAndTravelPlan[],,1),0),MATCH(TrainingAndTravelVariances[[#Headers],[Dic]],TrainingAndTravelActual[#Headers],0)) -> € 2,000.00 | O32: =SUM(TrainingAndTravelVariances[[#This Row],[Gen]:[Dic]]) -> € 13,700.00
B33: Subtotale | C33: =SUBTOTAL(109,TrainingAndTravelVariances[Gen]) -> € 1,200.00 | D33: =SUBTOTAL(109,TrainingAndTravelVariances[Feb]) -> -€ 600.00 | E33: =SUBTOTAL(109,TrainingAndTravelVariances[Mar]) -> € 1,200.00 | F33: =SUBTOTAL(109,TrainingAndTravelVariances[Apr]) -> € 1,200.00 | G33: =SUBTOTAL(109,TrainingAndTravelVariances[Mag]) -> € 2,000.00 | H33: =SUBTOTAL(109,TrainingAndTravelVariances[Giu]) -> -€ 2,300.00 | I33: =SUBTOTAL(109,TrainingAndTravelVariances[Lug]) -> € 4,000.00 | J33: =SUBTOTAL(109,TrainingAndTravelVariances[Ago]) -> € 4,000.00 | K33: =SUBTOTAL(109,TrainingAndTravelVariances[Set]) -> € 4,000.00 | L33: =SUBTOTAL(109,TrainingAndTravelVariances[Ott]) -> € 4,000.00 | M33: =SUBTOTAL(109,TrainingAndTravelVariances[Nov]) -> € 4,000.00 | N33: =SUBTOTAL(109,TrainingAndTravelVariances[Dic]) -> € 4,000.00 | O33: =SUBTOTAL(109,TrainingAndTravelVariances[ANNO]) -> € 26,700.00
B35: TOTALI | C35: Gen | D35: Feb | E35: Mar | F35: Apr | G35: Mag | H35: Giu | I35: Lug | J35: Ago | K35: Set | L35: Ott | M35: Nov | N35: Dic | O35: Anno
B36: Variazioni di spesa mensili | C36: =TrainingAndTravelVariances[[#Totals],[Gen]]+MarketingVariances[[#Totals],[Gen]]+OfficeVariances[[#Totals],[Gen]]+EmployeeVariances[[#Totals],[Gen]] -> € 1,738.00 | D36: =TrainingAndTravelVariances[[#Totals],[Feb]]+MarketingVariances[[#Totals],[Feb]]+OfficeVariances[[#Totals],[Feb]]+EmployeeVariances[[#Totals],[Feb]] -> -€ 984.00 | E36: =TrainingAndTravelVariances[[#Totals],[Mar]]+MarketingVariances[[#Totals],[Mar]]+OfficeVariances[[#Totals],[Mar]]+EmployeeVariances[[#Totals],[Mar]] -> € 1,255.00 | F36: =TrainingAndTravelVariances[[#Totals],[Apr]]+MarketingVariances[[#Totals],[Apr]]+OfficeVariances[[#Totals],[Apr]]+EmployeeVariances[[#Totals],[Apr]] -> € 301.00 | G36: =TrainingAndTravelVariances[[#Totals],[Mag]]+MarketingVariances[[#Totals],[Mag]]+OfficeVariances[[#Totals],[Mag]]+EmployeeVariances[[#Totals],[Mag]] -> € 1,440.00 | H36: =TrainingAndTravelVariances[[#Totals],[Giu]]+MarketingVariances[[#Totals],[Giu]]+OfficeVariances[[#Totals],[Giu]]+EmployeeVariances[[#Totals],[Giu]] -> -€ 3,744.00 | I36: =TrainingAndTravelVariances[[#Totals],[Lug]]+MarketingVariances[[#Totals],[Lug]]+OfficeVariances[[#Totals],[Lug]]+EmployeeVariances[[#Totals],[Lug]] -> € 134,695.00 | J36: =TrainingAndTravelVariances[[#Totals],[Ago]]+MarketingVariances[[#Totals],[Ago]]+OfficeVariances[[#Totals],[Ago]]+EmployeeVariances[[#Totals],[Ago]] -> € 138,918.00 | K36: =TrainingAndTravelVariances[[#Totals],[Set]]+MarketingVariances[[#Totals],[Set]]+OfficeVariances[[#Totals],[Set]]+EmployeeVariances[[#Totals],[Set]] -> € 135,918.00 | L36: =TrainingAndTravelVariances[[#Totals],[Ott]]+MarketingVariances[[#Totals],[Ott]]+OfficeVariances[[#Totals],[Ott]]+EmployeeVariances[[#Totals],[Ott]] -> € 140,918.00 | M36: =TrainingAndTravelVariances[[#Totals],[Nov]]+MarketingVariances[[#Totals],[Nov]]+OfficeVariances[[#Totals],[Nov]]+EmployeeVariances[[#Totals],[Nov]] -> € 136,218.00 | N36: =TrainingAndTravelVariances[[#Totals],[Dic]]+MarketingVariances[[#Totals],[Dic]]+OfficeVariances[[#Totals],[Dic]]+EmployeeVariances[[#Totals],[Dic]] -> € 140,018.00 | O36: =TrainingAndTravelVariances[[#Totals],[ANNO]]+MarketingVariances[[#Totals],[ANNO]]+OfficeVariances[[#Totals],[ANNO]]+EmployeeVariances[[#Totals],[ANNO]] -> € 826,691.00
B37: TOTALE variazioni di spesa | C37: =SUM($C$36:C36) -> € 1,738.00 | D37: =SUM($C$36:D36) -> € 754.00 | E37: =SUM($C$36:E36) -> € 2,009.00 | F37: =SUM($C$36:F36) -> € 2,310.00 | G37: =SUM($C$36:G36) -> € 3,750.00 | H37: =SUM($C$36:H36) -> € 6.00 | I37: =SUM($C$36:I36) -> € 134,701.00 | J37: =SUM($C$36:J36) -> € 273,619.00 | K37: =SUM($C$36:K36) -> € 409,537.00 | L37: =SUM($C$36:L36) -> € 550,455.00 | M37: =SUM($C$36:M36) -> € 686,673.00 | N37: =SUM($C$36:N36) -> € 826,691.00

Sheet ANALISI DELLE SPESE
B4: CATEGORIA DI SPESA | C4: SPESE PIANIFICATE | D4: SPESE EFFETTIVE | E4: VARIAZIONI DI SPESA | F4: PERCENTUALE DI SCOSTAMENTO
B5: COSTI DEI DIPENDENTI | C5: =EmployeePlan[[#Totals],[ANNO]] -> € 1,355,090.00 | D5: =EmployeeActual[[#Totals],[ANNO]] -> € 659,130.00 | E5: =C5-D5 -> € 695,960.00 | F5: =E5/C5 -> 51%
B6: ='SPESE PIANIFICATE'!B10 -> COSTI DI UFFICIO | C6: =OfficePlan[[#Totals],[ANNO]] -> € 138,740.00 | D6: =OfficeActual[[#Totals],[ANNO]] -> € 69,350.00 | E6: =C6-D6 -> € 69,390.00 | F6: =E6/C6 -> 50%
B7: ='SPESE PIANIFICATE'!B21 -> COSTI DI MARKETING | C7: =MarketingPlan[[#Totals],[ANNO]] -> € 67,800.00 | D7: =MarketingActual[[#Totals],[ANNO]] -> € 33,159.00 | E7: =C7-D7 -> € 34,641.00 | F7: =E7/C7 -> 51%
B8: ='SPESE PIANIFICATE'!B30 -> FORMAZIONE/VIAGGIO | C8: =TrainingAndTravelPlan[[#Totals],[ANNO]] -> € 48,000.00 | D8: =TrainingAndTravelActual[[#Totals],[ANNO]] -> € 21,300.00 | E8: =C8-D8 -> € 26,700.00 | F8: =E8/C8 -> 56%
B9: ='SPESE PIANIFICATE'!B35 -> SPESE PIANIFICATE TOTALI | C9: ='SPESE PIANIFICATE'!O36 -> € 1,609,630.00 | D9: ='SPESE EFFETTIVE'!O36 -> € 782,939.00 | E9: =C9-D9 -> € 826,691.00 | F9: =E9/C9 -> 51%
